Workbook

Sheet Cover
B1: =IF(C17=0,"WEMP Template","WEMP for "&CHAR(10)&C17) -> WEMP Template
B14: Version 1.0 (Dec 2010)
B17: Business Name | C17: ='G1-G2 General Details'!C3:I3 -> 0
B18: Water Service Provider | C18: ='G1-G2 General Details'!C4:F4 -> 0
B19: Account Number | C19: ='G1-G2 General Details'!I4 -> 0
B20: Address | C20: ='G1-G2 General Details'!C6:F6 -> 0
B21: Submission Date | C21: ='G3-G4-G5 Submission Data'!D7 -> 00:00:00
B23: Do not fill in this form, the data is automatically generated from the information entered into Modules G1 & G5
B28: Note: The QWC SEQ WEMP Template and the DERM WEMP Template for outside SEQ are similar but not identical. Please ensure you are using the correct template for your location. Changes to either template are not permitted without the written consent of both the QWC and DERM.

Sheet Checklist
B2: WEMP Checklist
B3: Make sure you complete this checklist prior to submitting the WEMP to the water service provider. Only complete the sections which are relevant to your WEMP as defined in the WEMP guideline. Non relevant cells have been blanked out.
B4: Compulsory
C5: G1-G5 | D5: Have the general and submission details been completed?
B6: General | C6: Module
B7: Taps and Showers
C8: 5-1A | D8: Has Module 5-1A been completed? | F8: ='G3-G4-G5 Submission Data'!$B$12 -> 0
B9: Toilets and Urinals
C10: 5-1B | D10: Has Module 5-1B been completed? | F10: ='G3-G4-G5 Submission Data'!$B$13 -> 0
B11: Cooling Towers
C12: 5-2 | D12: Has Module 5-2 been completed? | F12: ='G3-G4-G5 Submission Data'!$B$14 -> 0
B13: Outdoor Use | F13: ='G3-G4-G5 Submission Data'!$B$14 -> 0
C14: 4, 6 & 9 | D14: Have all outdoor end uses been identified, recorded and documented? | F14: ='G3-G4-G5 Submission Data'!$B$15 -> 0
B15: Process and Other Water Uses | F15: ='G3-G4-G5 Submission Data'!$B$15 -> 0
C16: 4, 6 & 9 | D16: Have all process and other end uses been identified, recorded and documented? | F16: ='G3-G4-G5 Submission Data'!$B$16 -> 0
C17: WEMP Checklists | D17: Have the 'WEMP Water Using Features" and "WEMP Water Saving Measures" checklists been completed and signed?
B19: Signed | E19: Authority’s Signature
B20: Date | E20: Date of signing

Sheet Instructions
B2: WEMP Template Instructions
B3: NB: You do not need to print this sheet
B4: General This WEMP Template has been created by DERM to assist non-residential customers of water service providers outside South East Queensland to complete WEMPs. This template is 'Module' focused in that it is a ready made set of electronic forms for capturing information and data required for a WEMP by the WEMP Guideline. Modules 5-1A, 5-1B and 5-2 contain some basic calculations, the totals from which automatically transer to the End Use Inventory in module 6. A WEMP Template User Guide has been written to assist non-residential customers in completing this WEMP Template. The user guide can be found on the WEMP page at <www.derm.qld.gov.au>. Water service providers and their non-residential customers are free to use their own calculating tools to substitute for modules 5-1A, 5-1B and 5-2, or indeed the Template as a whole. Whatever tools are used the Template represents the recommended minimum content and level of detail for a complying WEMP. Water use and savings should be broken down by at least the following end use categories (further breakdowns may well be warranted): * Taps and showers * Toilets and urinals * Cooling towers * Outdoor * Process & Other Care should be taken to record the parameters, variables and assumptions made in determining water use and savings. Cells in the Template modules are colour coded as follows:
C5: White = data entry required
C6: Yellow = drop down menu
C7: Green = calculated value/formula
B9: Note: If modules for Taps and Showers (5-1A), Toilets and Urinals (5-1B) and Cooling Towers (5-2) are not used then the outputs and key data from your own calculators should be entered into worksheet '6-End Use Inventory' and worksheet '9-Water Saving Measures' so as to provide a complete picture of current water use and proposed savings for ALL end uses on the premises. All information entered, and figures generated, are the responsibility of the user.
B10: Module | C10: Module / Item Name | D10: Description
B11: G1 | C11: Account Data | D11: Provide general information about your account.
B12: G2 | C12: Customer Contact for WEMP | D12: Provide customer contact details, should your water service provider need to contact someone who knows about the content of this WEMP.
B13: G3 | C13: Submission Details | D13: Details about who has prepared and / or authorised this WEMP.
B14: G4 | C14: WEMP Components in this Submission | D14: Provide an overview of the WEMP components that are being completed as part of this WEMP.
B15: G5 | C15: WEMP Scope | D15: Define the boundaries of the WEMP justifying any excluded facilities, processes or equipment items.
B16: G6 | C16: Business & Site Data | D16: Use drop down menus to select ANZSIC Industry Division and Class; and code and CAU auto selects. Provide extra summary details about your business, the premises and main water using activities at the premises.
B17: 1 | C17: Water Use Summary | D17: Provides an overview of your organisation's performance with respect to water use including historical use, current use, and other sources.
B18: 2 | C18: Management Review | D18: Undertake a review of your organisation's management, and their attitudes towards water efficiency.
B19: 3 | C19: Management Actions | D19: Using the results from module 2, you can evaluate where your organisation would like to go with respect to water efficiency. This module alone provides a good guide for staff in trying to realise water efficiency in the workplace. Use this module to develop actions, responsibilities and due dates associated with water management.
B20: 4 | C20: End Use Definitions | D20: Select from a pre set list of water End Use categories and/or define your own. An 'end use' is a category of water use, that allows the water use in your premises to be summarised in later modules.
B21: 5-1A | C21: Taps and Showers | D21: Inventory of all taps and showers within the premises, their current water use and identification of water savings measures. Note that the calculation does not count fixtures in the equation. When entering data consider a group of taps/showers and usage or enter individual items as line items.
B22: 5-1B | C22: Toilets and Urinals | D22: Inventory of all toilets and urinalswithin the premises, their current water use and identification of water savings measures.
B23: 5-2 | C23: Cooling Tower | D23: Inventory of all cooling towers within the premises, their current water use and identification of water saving measures.
B24: 6 | C24: End Use Inventory | D24: A list of each specific end use within the premises except 5-1A, 5-1B and 5-2 which include summaries of details in their respective modules.
B25: 7 | C25: End Use Totals | D25: Summary by each End Use Category to provide an overview of the proportion each category represents of the total water consumption for the premises.
B26: 8 | C26: End Use Summary Chart | D26: Pie chart displaying each End Uses Category and its percentage of the total premises' usage.
B27: 9-1 | C27: Water Saving Measures | D27: Identify all potential water efficiency projects and determine the potential water savings from each. Include all measures in here so that the feasibility of each can be evaluated.
B28: 9-2 | C28: Economic Assessment | D28: Determine the capital cost, operating cost and payback period for each of the potential water saving measures.
B29: 9-3 | C29: Action Plan | D29: Identify projects with a 'Yes/No' drop down menu to indicate which ones will be undertaken within the premises to increase water efficiency. Designate a person responsible for each project as well as a date for completion. Use the status drop-down menu to update the project progress.

Sheet G1-G2 General Details
B2: G1 Account Data
B3: Business Name
B4: Water Service Provider | G4: Account No.
B5: Name of Account Holder | G5: ABN or ACN
B6: Address of Premises | G6: Post Code
B7: Date Account Opened
B9: G2 Customer Contact for WEMP
B10: Water Efficiency Manager Contact: | C10: Title (Mr/Mrs/Miss/Ms/Dr) | E10: First Name: | H10: Last Name:
B11: Job Title | D11: Department
B12: Telephone Number | D12: Fax No.
B13: Mobile No. | D13: Email

Sheet G3-G4-G5 Submission Data
B2: G3 Submission Details
B3: WEMP Author | E3: Specify the name of the person undertaking this WEMP
B4: Authorisation | E4: Specify the name of the person who authorises the WEMP on behalf of the business or non-residential property
B5: Authority’s Signature | E5: Signature of person of appropriate authority in business or non-residential property to authorise WEMP
B6: Position | E6: Business position title
B7: Date | E7: Date of signing
B9: G4 WEMP Components in this Submission
B10: Relevant? | D10: Component | E10: If not relevant provide justification for exclusion from WEMP
D12: Taps and Showers
D13: Toilets and Urinals
D14: Cooling Towers & Evaporative Cooling
D15: Outdoor use
D16: Process and other End Uses
B17: G5 WEMP Scope
B18: General description of the type of operations and activities that are conducted on the premises and how they affect water use.

Sheet G6 Business-Site Data
B2: G6 Business & Site Data
B3: ANZSIC Industry Division Name
B4: ANZSIC Industry Class | C4: Supermarket and Grocery Stores
B5: ANZSIC (2006) Code No. | C5: =IF(OR(ISBLANK(C3),ISBLANK(C4)),"",VLOOKUP(C4,ANZICC_List,2,FALSE)) -> 
B6: Commercial Activity Description (outline the nature of the primary commercial or business activity conducted on the premises to further clarify the ANZSIC Code) | D6: Commercial Activity Unit (CAU) | F6: Alternative CAU
B7: Premises Description (number, nature, age and other features of relevance to water use)
B8: Primary Water Using Activity Details (describe the general scope and nature of water using facilities, processes and equipment)
B9: Number of full time equivalent staff
B10: Hours of operation per day (average)
B11: Days of operation per year (average)
B14: Agriculture, Forestry and Fishing | C14: A
B15: Mining | C15: B
B16: Manufacturing | C16: C
B17: Electricity, Gas, Water and Waste Services | C17: D
B18: Construction | C18: E
B19: Wholesale Trade | C19: F
B20: Retail Trade | C20: G
B21: Accommodation and Food Services | C21: H
B22: Transport, Postal and Warehousing | C22: I
B23: Information Media and Telecommunications | C23: J
B24: Financial and Insurance Services | C24: K
B25: Rental, Hiring and Real Estate Services | C25: L
B26: Professional, Scientific and Technical Services | C26: M
B27: Administrative and Support Services | C27: N
B28: Public Administration and Safety | C28: O
B29: Education and Training | C29: P
B30: Health Care and Social Assistance | C30: Q
B31: Arts and Recreation Services | C31: R
B32: Other Services | C32: S
B35: Position | C35: =MATCH(_xlnm.Criteria,C39:C544,0)-1 -> 
B36: Depth | C36: =COUNTIF(OFFSET(crap,0,-1),_xlnm.Criteria) -> 0
B37: CAM ref | C37: =MATCH(C4,D39:D544,0)-1 -> 290
B38: Division Code | C38: Division Title | D38: Class | E38: Code | F38: CAM | G38: CAM 2 | H38: CAM 3
B39: A | C39: Agriculture, Forestry and Fishing | D39: Nursery Production (Under Cover) | E39: 0111 | F39: tonne | G39: ha
B40: A | C40: Agriculture, Forestry and Fishing | D40: Nursery Production (Outdoors) | E40: 0112 | F40: tonne | G40: ha
B41: A | C41: Agriculture, Forestry and Fishing | D41: Turf Growing | E41: 0113 | F41: ha
B42: A | C42: Agriculture, Forestry and Fishing | D42: Floriculture Production (Under Cover) | E42: 0114 | F42: tonne | G42: ha
B43: A | C43: Agriculture, Forestry and Fishing | D43: Floriculture Production (Outdoors) | E43: 0115 | F43: tonne | G43: ha
B44: A | C44: Agriculture, Forestry and Fishing | D44: Mushroom Growing | E44: 0121 | F44: tonne | G44: ha
B45: A | C45: Agriculture, Forestry and Fishing | D45: Vegetable Growing (Under Cover) | E45: 0122 | F45: tonne | G45: ha
B46: A | C46: Agriculture, Forestry and Fishing | D46: Vegetable Growing (Outdoors) | E46: 0123 | F46: tonne | G46: ha
B47: A | C47: Agriculture, Forestry and Fishing | D47: Grape Growing | E47: 0131 | F47: tonne | G47: ha
B48: A | C48: Agriculture, Forestry and Fishing | D48: Kiwifruit Growing | E48: 0132 | F48: tonne | G48: ha
B49: A | C49: Agriculture, Forestry and Fishing | D49: Berry Fruit Growing | E49: 0133 | F49: tonne | G49: ha
B50: A | C50: Agriculture, Forestry and Fishing | D50: Apple and Pear Growing | E50: 0134 | F50: tonne | G50: ha
B51: A | C51: Agriculture, Forestry and Fishing | D51: Stone Fruit Growing | E51: 0135 | F51: tonne | G51: ha
B52: A | C52: Agriculture, Forestry and Fishing | D52: Citrus Fruit Growing | E52: 0136 | F52: tonne | G52: ha
B53: A | C53: Agriculture, Forestry and Fishing | D53: Olive Growing | E53: 0137 | F53: tonne | G53: ha
B54: A | C54: Agriculture, Forestry and Fishing | D54: Other Fruit and Tree Nut Growing | E54: 0139 | F54: tonne | G54: ha
B55: A | C55: Agriculture, Forestry and Fishing | D55: Sheep Farming (Specialised) | E55: 0141 | F55: head
B56: A | C56: Agriculture, Forestry and Fishing | D56: Beef Cattle Farming (Specialised) | E56: 0142 | F56: head
B57: A | C57: Agriculture, Forestry and Fishing | D57: Beef Cattle Feedlots (Specialised) | E57: 0143 | F57: head
B58: A | C58: Agriculture, Forestry and Fishing | D58: Sheep-Beef Cattle Farming | E58: 0144 | F58: head
B59: A | C59: Agriculture, Forestry and Fishing | D59: Grain-Sheep or Grain-Beef Cattle Farming | E59: 0145 | F59: head
B60: A | C60: Agriculture, Forestry and Fishing | D60: Rice Growing | E60: 0146 | F60: tonne | G60: ha
B61: A | C61: Agriculture, Forestry and Fishing | D61: Other Grain Growing | E61: 0149 | F61: tonne | G61: ha
B62: A | C62: Agriculture, Forestry and Fishing | D62: Sugar Cane Growing | E62: 0151 | F62: tonne | G62: ha
B63: A | C63: Agriculture, Forestry and Fishing | D63: Cotton Growing | E63: 0152 | F63: tonne | G63: ha
B64: A | C64: Agriculture, Forestry and Fishing | D64: Other Crop Growing n.e.c. | E64: 0159 | F64: tonne | G64: ha
B65: A | C65: Agriculture, Forestry and Fishing | D65: Dairy Cattle Farming | E65: 0160 | F65: head
B66: A | C66: Agriculture, Forestry and Fishing | D66: Poultry Farming (Meat) | E66: 0171 | F66: bird | G66: kg
B67: A | C67: Agriculture, Forestry and Fishing | D67: Poultry Farming (Eggs) | E67: 0172 | F67: tonne | G67: Eggs
B68: A | C68: Agriculture, Forestry and Fishing | D68: Deer Farming | E68: 0180 | F68: head
B69: A | C69: Agriculture, Forestry and Fishing | D69: Horse Farming | E69: 0191 | F69: head
B70: A | C70: Agriculture, Forestry and Fishing | D70: Pig Farming | E70: 0192 | F70: head
B71: A | C71: Agriculture, Forestry and Fishing | D71: Beekeeping | E71: 0193 | F71: tonne | G71: Bees
B72: A | C72: Agriculture, Forestry and Fishing | D72: Other Livestock Farming n.e.c. | E72: 0199 | F72: head
B73: A | C73: Agriculture, Forestry and Fishing | D73: Offshore Longline and Rack Aquaculture | E73: 0201 | F73: tonne
B74: A | C74: Agriculture, Forestry and Fishing | D74: Offshore Caged Aquaculture | E74: 0202 | F74: tonne
B75: A | C75: Agriculture, Forestry and Fishing | D75: Onshore Aquaculture | E75: 0203 | F75: tonne
B76: A | C76: Agriculture, Forestry and Fishing | D76: Forestry | E76: 0301 | F76: tonne | G76: ha
B77: A | C77: Agriculture, Forestry and Fishing | D77: Logging | E77: 0302 | F77: tonne | G77: trees logged
B78: A | C78: Agriculture, Forestry and Fishing | D78: Rock Lobster and Crab Potting | E78: 0411 | F78: tonne
B79: A | C79: Agriculture, Forestry and Fishing | D79: Prawn Fishing | E79: 0412 | F79: tonne
B80: A | C80: Agriculture, Forestry and Fishing | D80: Line Fishing | E80: 0413 | F80: tonne
B81: A | C81: Agriculture, Forestry and Fishing | D81: Fish Trawling, Seining and Netting | E81: 0414 | F81: tonne
B82: A | C82: Agriculture, Forestry and Fishing | D82: Other Fishing | E82: 0419 | F82: tonne
B83: A | C83: Agriculture, Forestry and Fishing | D83: Hunting and Trapping | E83: 0420 | F83: tonne
B84: A | C84: Agriculture, Forestry and Fishing | D84: Forestry Support Services | E84: 0510 | F84: employee
B85: A | C85: Agriculture, Forestry and Fishing | D85: Cotton Ginning | E85: 0521 | F85: tonne
B86: A | C86: Agriculture, Forestry and Fishing | D86: Shearing Services | E86: 0522 | F86: head | G86: tonnes
B87: A | C87: Agriculture, Forestry and Fishing | D87: Other Agriculture and Fishing Support Services | E87: 0529 | F87: employee
B88: B | C88: Mining | D88: Coal Mining | E88: 0600 | F88: tonne
B89: B | C89: Mining | D89: Oil and Gas Extraction | E89: 0700 | F89: tonne
B90: B | C90: Mining | D90: Iron Ore Mining | E90: 0801 | F90: tonne
B91: B | C91: Mining | D91: Bauxite Mining | E91: 0802 | F91: tonne
B92: B | C92: Mining | D92: Copper Ore Mining | E92: 0803 | F92: tonne
B93: B | C93: Mining | D93: Gold Ore Mining | E93: 0804 | F93: tonne
B94: B | C94: Mining | D94: Mineral Sand Mining | E94: 0805 | F94: tonne
B95: B | C95: Mining | D95: Nickel Ore Mining | E95: 0806 | F95: tonne
B96: B | C96: Mining | D96: Silver-Lead-Zinc Ore Mining | E96: 0807 | F96: tonne
B97: B | C97: Mining | D97: Other Metal Ore Mining | E97: 0809 | F97: tonne
B98: B | C98: Mining | D98: Gravel and Sand Quarrying | E98: 0911 | F98: tonne
B99: B | C99: Mining | D99: Other Construction Material Mining | E99: 0919 | F99: tonne
B100: B | C100: Mining | D100: Other Non-Metallic Mineral Mining and Quarrying | E100: 0990 | F100: tonne
B101: B | C101: Mining | D101: Petroleum Exploration | E101: 1011 | F101: ha
B102: B | C102: Mining | D102: Mineral Exploration | E102: 1012 | F102: ha
B103: B | C103: Mining | D103: Other Mining Support Services | E103: 1090 | F103: employee
B104: C | C104: Manufacturing | D104: Meat Processing | E104: 1111 | F104: head | G104: tonnes HSCW | H104: kg
B105: C | C105: Manufacturing | D105: Poultry Processing | E105: 1112 | F105: bird | G105: tonnes
B106: C | C106: Manufacturing | D106: Cured Meat and Smallgoods Manufacturing | E106: 1113 | F106: kg
B107: C | C107: Manufacturing | D107: Seafood Processing | E107: 1120 | F107: kg
B108: C | C108: Manufacturing | D108: Milk and Cream Processing | E108: 1131 | F108: litre | G108: kg
B109: C | C109: Manufacturing | D109: Ice Cream Manufacturing | E109: 1132 | F109: litre | G109: kg
B110: C | C110: Manufacturing | D110: Cheese and Other Dairy Product Manufacturing | E110: 1133 | F110: kg
B111: C | C111: Manufacturing | D111: Fruit and Vegetable Processing | E111: 1140 | F111: kg
B112: C | C112: Manufacturing | D112: Oil and Fat Manufacturing | E112: 1150 | F112: kg | G112: m3
B113: C | C113: Manufacturing | D113: Grain Mill Product Manufacturing | E113: 1161 | F113: tonne | G113: tonne
B114: C | C114: Manufacturing | D114: Cereal, Pasta and Baking Mix Manufacturing | E114: 1162 | F114: kg | G114: tonne
B115: C | C115: Manufacturing | D115: Bread Manufacturing (Factory based) | E115: 1171 | F115: kg | G115: tonne
B116: C | C116: Manufacturing | D116: Cake and Pastry Manufacturing (Factory based) | E116: 1172 | F116: kg | G116: tonne
B117: C | C117: Manufacturing | D117: Biscuit Manufacturing (Factory based) | E117: 1173 | F117: kg | G117: tonne
B118: C | C118: Manufacturing | D118: Bakery Product Manufacturing (Non-factory based) | E118: 1174 | F118: kg | G118: tonne
B119: C | C119: Manufacturing | D119: Sugar Manufacturing | E119: 1181 | F119: tonne
B120: C | C120: Manufacturing | D120: Confectionery Manufacturing | E120: 1182 | F120: kg
B121: C | C121: Manufacturing | D121: Potato, Corn and Other Crisp Manufacturing | E121: 1191 | F121: kg
B122: C | C122: Manufacturing | D122: Prepared Animal and Bird Feed Manufacturing | E122: 1192 | F122: tonne
B123: C | C123: Manufacturing | D123: Other Food Product Manufacturing n.e.c. | E123: 1199 | F123: kg | G123: tonne
B124: C | C124: Manufacturing | D124: Soft Drink, Cordial and Syrup Manufacturing | E124: 1211 | F124: litre produced | G124: tonnes produced
B125: C | C125: Manufacturing | D125: Beer Manufacturing | E125: 1212 | F125: litre produced | G125: tonnes produced
B126: C | C126: Manufacturing | D126: Spirit Manufacturing | E126: 1213 | F126: litre produced | G126: tonnes produced
B127: C | C127: Manufacturing | D127: Wine and Other Alcoholic Beverage Manufacturing | E127: 1214 | F127: litre produced | G127: tonnes produced
B128: C | C128: Manufacturing | D128: Cigarette and Tobacco Product Manufacturing | E128: 1220 | F128: tonne
B129: C | C129: Manufacturing | D129: Wool Scouring | E129: 1311 | F129: tonne
B130: C | C130: Manufacturing | D130: Natural Textile Manufacturing | E130: 1312 | F130: tonne
B131: C | C131: Manufacturing | D131: Synthetic Textile Manufacturing | E131: 1313 | F131: tonne
B132: C | C132: Manufacturing | D132: Leather Tanning, Fur Dressing and Leather Product Manufacturing | E132: 1320 | F132: tonne | G132: skins
B133: C | C133: Manufacturing | D133: Textile Floor Covering Manufacturing | E133: 1331 | F133: tonne
B134: C | C134: Manufacturing | D134: Rope, Cordage and Twine Manufacturing | E134: 1332 | F134: tonne
B135: C | C135: Manufacturing | D135: Cut and Sewn Textile Product Manufacturing | E135: 1333 | F135: tonne
B136: C | C136: Manufacturing | D136: Textile Finishing and Other Textile Product Manufacturing | E136: 1334 | F136: tonne
B137: C | C137: Manufacturing | D137: Knitted Product Manufacturing | E137: 1340 | F137: unit
B138: C | C138: Manufacturing | D138: Clothing Manufacturing | E138: 1351 | F138: unit
B139: C | C139: Manufacturing | D139: Footwear Manufacturing | E139: 1352 | F139: unit
B140: C | C140: Manufacturing | D140: Log Sawmilling | E140: 1411 | F140: tonne
B141: C | C141: Manufacturing | D141: Wood Chipping | E141: 1412 | F141: cubic metre | G141: tonne
B142: C | C142: Manufacturing | D142: Timber Resawing and Dressing | E142: 1413 | F142: tonne
B143: C | C143: Manufacturing | D143: Prefabricated Wooden Building Manufacturing | E143: 1491 | F143: unit
B144: C | C144: Manufacturing | D144: Wooden Structural Fitting and Component Manufacturing | E144: 1492 | F144: unit
B145: C | C145: Manufacturing | D145: Veneer and Plywood Manufacturing | E145: 1493 | F145: tonne
B146: C | C146: Manufacturing | D146: Reconstituted Wood Product Manufacturing | E146: 1494 | F146: tonne
B147: C | C147: Manufacturing | D147: Other Wood Product Manufacturing n.e.c. | E147: 1499 | F147: tonne
B148: C | C148: Manufacturing | D148: Pulp, Paper and Paperboard Manufacturing | E148: 1510 | F148: tonne
B149: C | C149: Manufacturing | D149: Corrugated Paperboard and Paperboard Container Manufacturing | E149: 1521 | F149: tonne
B150: C | C150: Manufacturing | D150: Paper Bag Manufacturing | E150: 1522 | F150: tonne
B151: C | C151: Manufacturing | D151: Paper Stationery Manufacturing | E151: 1523 | F151: tonne
B152: C | C152: Manufacturing | D152: Sanitary Paper Product Manufacturing | E152: 1524 | F152: tonne
B153: C | C153: Manufacturing | D153: Other Converted Paper Product Manufacturing | E153: 1529 | F153: tonne
B154: C | C154: Manufacturing | D154: Printing | E154: 1611 | F154: tonne
B155: C | C155: Manufacturing | D155: Printing Support Services | E155: 1612 | F155: employee
B156: C | C156: Manufacturing | D156: Reproduction of Recorded Media | E156: 1620 | F156: unit
B157: C | C157: Manufacturing | D157: Petroleum Refining and Petroleum Fuel Manufacturing | E157: 1701 | F157: tonne
B158: C | C158: Manufacturing | D158: Other Petroleum and Coal Product Manufacturing | E158: 1709 | F158: tonne
B159: C | C159: Manufacturing | D159: Industrial Gas Manufacturing | E159: 1811 | F159: tonne
B160: C | C160: Manufacturing | D160: Basic Organic Chemical Manufacturing | E160: 1812 | F160: tonne | G160: cubic meter
B161: C | C161: Manufacturing | D161: Basic Inorganic Chemical Manufacturing | E161: 1813 | F161: tonne | G161: cubic meter
B162: C | C162: Manufacturing | D162: Synthetic Resin and Synthetic Rubber Manufacturing | E162: 1821 | F162: tonne | G162: cubic meter
B163: C | C163: Manufacturing | D163: Other Basic Polymer Manufacturing | E163: 1829 | F163: tonne
B164: C | C164: Manufacturing | D164: Fertiliser Manufacturing | E164: 1831 | F164: tonne | G164: cubic meter
B165: C | C165: Manufacturing | D165: Pesticide Manufacturing | E165: 1832 | F165: tonne | G165: cubic meter
B166: C | C166: Manufacturing | D166: Human Pharmaceutical and Medicinal Product Manufacturing | E166: 1841 | F166: tonne | G166: employee
B167: C | C167: Manufacturing | D167: Veterinary Pharmaceutical and Medicinal Product Manufacturing | E167: 1842 | F167: tonne | G167: employee
B168: C | C168: Manufacturing | D168: Cleaning Compound Manufacturing | E168: 1851 | F168: tonne | G168: employee
B169: C | C169: Manufacturing | D169: Cosmetic and Toiletry Preparation Manufacturing | E169: 1852 | F169: tonne | G169: employee
B170: C | C170: Manufacturing | D170: Photographic Chemical Product Manufacturing | E170: 1891 | F170: tonne | G170: employee
B171: C | C171: Manufacturing | D171: Explosive Manufacturing | E171: 1892 | F171: tonne
B172: C | C172: Manufacturing | D172: Other Basic Chemical Product Manufacturing n.e.c. | E172: 1899 | F172: tonne
B173: C | C173: Manufacturing | D173: Polymer Film and Sheet Packaging Material Manufacturing | E173: 1911 | F173: tonne
B174: C | C174: Manufacturing | D174: Rigid and Semi-Rigid Polymer Product Manufacturing | E174: 1912 | F174: tonne
B175: C | C175: Manufacturing | D175: Polymer Foam Product Manufacturing | E175: 1913 | F175: tonne
B176: C | C176: Manufacturing | D176: Tyre Manufacturing | E176: 1914 | F176: tonne | G176: tyres produced
B177: C | C177: Manufacturing | D177: Adhesive Manufacturing | E177: 1915 | F177: tonne
B178: C | C178: Manufacturing | D178: Paint and Coatings Manufacturing | E178: 1916 | F178: tonne
B179: C | C179: Manufacturing | D179: Other Polymer Product Manufacturing | E179: 1919 | F179: tonne
B180: C | C180: Manufacturing | D180: Natural Rubber Product Manufacturing | E180: 1920 | F180: tonne
B181: C | C181: Manufacturing | D181: Glass and Glass Product Manufacturing | E181: 2010 | F181: tonne | G181: unit
B182: C | C182: Manufacturing | D182: Clay Brick Manufacturing | E182: 2021 | F182: tonne | G182: unit
B183: C | C183: Manufacturing | D183: Other Ceramic Product Manufacturing | E183: 2029 | F183: tonne | G183: unit
B184: C | C184: Manufacturing | D184: Cement and Lime Manufacturing | E184: 2031 | F184: tonne
B185: C | C185: Manufacturing | D185: Plaster Product Manufacturing | E185: 2032 | F185: tonne | G185: units
B186: C | C186: Manufacturing | D186: Ready-Mixed Concrete Manufacturing | E186: 2033 | F186: tonne | G186: cubic meter
B187: C | C187: Manufacturing | D187: Concrete Product Manufacturing | E187: 2034 | F187: tonne | G187: cubic meter
B188: C | C188: Manufacturing | D188: Other Non-Metallic Mineral Product Manufacturing | E188: 2090 | F188: tonne
B189: C | C189: Manufacturing | D189: Iron Smelting and Steel Manufacturing | E189: 2110 | F189: tonne
B190: C | C190: Manufacturing | D190: Iron and Steel Casting | E190: 2121 | F190: tonne
B191: C | C191: Manufacturing | D191: Steel Pipe and Tube Manufacturing | E191: 2122 | F191: tonne | G191: work hours
B192: C | C192: Manufacturing | D192: Alumina Production | E192: 2131 | F192: tonne
B193: C | C193: Manufacturing | D193: Aluminium Smelting | E193: 2132 | F193: tonne
B194: C | C194: Manufacturing | D194: Copper, Silver, Lead and Zinc Smelting and Refining | E194: 2133 | F194: tonne
B195: C | C195: Manufacturing | D195: Other Basic Non-Ferrous Metal Manufacturing | E195: 2139 | F195: tonne
B196: C | C196: Manufacturing | D196: Non-Ferrous Metal Casting | E196: 2141 | F196: tonne
B197: C | C197: Manufacturing | D197: Aluminium Rolling, Drawing, Extruding | E197: 2142 | F197: tonne
B198: C | C198: Manufacturing | D198: Other Basic Non-Ferrous Metal Product Manufacturing | E198: 2149 | F198: tonne
B199: C | C199: Manufacturing | D199: Iron and Steel Forging | E199: 2210 | F199: tonne
B200: C | C200: Manufacturing | D200: Structural Steel Fabricating | E200: 2221 | F200: tonne
B201: C | C201: Manufacturing | D201: Prefabricated Metal Building Manufacturing | E201: 2222 | F201: tonne
B202: C | C202: Manufacturing | D202: Architectural Aluminium Product Manufacturing | E202: 2223 | F202: tonne
B203: C | C203: Manufacturing | D203: Metal Roof and Guttering Manufacturing (except Aluminium) | E203: 2224 | F203: tonne
B204: C | C204: Manufacturing | D204: Other Structural Metal Product Manufacturing | E204: 2229 | F204: tonne
B205: C | C205: Manufacturing | D205: Boiler, Tank and Other Heavy Gauge Metal Container Manufacturing | E205: 2231 | F205: tonne
... 339 more rows

Sheet 1 Water Use Summary
B2: 1. Water Use Summary | G2: Comments
B3: Baseline water use: | C3: Value
B4: Current water use period
B5: Current water use consumption (ML/year)
B6: ="Commercial Activity Units (total number of "&IF('G6 Business-Site Data'!G6= "",'G6 Business-Site Data'!E6, 'G6 Business-Site Data'!G6)&"s in baseline period)" -> Commercial Activity Units (total number of s in baseline period)
B7: ="KPI (L/ "&IF('G6 Business-Site Data'!G6= "",'G6 Business-Site Data'!E6, 'G6 Business-Site Data'!G6)&")" -> KPI (L/ ) | C7: =C5*1000000/C6 -> 
B8: KPI target
B9: KPI industry benchmark
B10: Historical water use: | C10: Year | D10: ML/year | E10: CAU | F10: =B7 -> KPI (L/ )
F11: =D11*1000000/E11 -> 
F12: =D12*1000000/E12 -> 
B18: Water meters: | C18: Value
B19: How many water service provider meters supply the site?
B20: How many sub-meters are used on site?
B21: Sub-meter data: | C21: Meter location | D21: Id number | E21: ML/year | F21: % of total use in baseline period
B22: If more than 5 sub-meters indicate the top 5 sub-meters | F22: =E22/$C$5 -> 
F23: =E23/$C$5 -> 
F24: =E24/$C$5 -> 
F25: =E25/$C$5 -> 
F26: =E26/$C$5 -> 
B27: Other sources: | C27: Source type | D27: End Use | E27: ML/year | F27: How was the volume estimated?
B28: If an end use is supplied 100% by other sources (not reticulated mains water) do not include this end use in the remainder of your WEMP. However, this information must be recorded in this section.

Sheet 2 Management Review
B2: 2. Water Management Review | E2: Business or Other Non-Residential Water Efficiency Rating: | F2: =REPT("«",G2) ->  | G2: =ROUND(AVERAGE(G5:G7,G9:G12,G14:G15,G17:G19,G21:G23),0) -> 0
B3: Management element | D3: Description | E3: Management achievement indicator | F3: Actual rating | G3: Length | H3: Minimum preferred rating
B4: 1 | C4: General Management | F4: =REPT("«",G4) ->  | G4: =ROUND(AVERAGE(G5:G7),0) -> 0 | J4: 1 | K4: 2 | L4: 3 | M4: 4 | N4: 5 | O4: 21
B5: a | C5: Management commitment | D5: How has your management planned to make operations water efficient? | F5: =IF(NOT(ISBLANK(E5)),REPT("«",MATCH(E5,J5:N5,0)),"") ->  | G5: =LEN(F5) -> 0 | H5: ««« | J5: We are still planning our formal written commitment | K5: Our floor managers have a formal written commitment | L5: Our group managers have a formal written commitment | M5: Our area/sector managers have a formal written commitment | N5: Our board has a formal written commitment | O5: 20
B6: b | C6: Responsibilities identified and delegated | D6: Has responsibility for water efficiency been assigned to a suitably qualified person or group? | F6: =IF(NOT(ISBLANK(E6)),REPT("«",MATCH(E6,J6:N6,0)),"") ->  | G6: =LEN(F6) -> 0 | H6: ««« | J6: We are still planning our water efficiency management delegation | K6: Our floor managers are responsible for water efficiency | L6: All levels from our group managers downward are responsible for water efficiency | M6: All levels from our area/sector managers downward are responsible for water efficiency | N6: All levels from our board downward are responsible for water efficiency | O6: 19
B7: c | C7: Encouraging innovation and new technology | D7: Does the organisation encourage innovative water saving ideas? | F7: =IF(NOT(ISBLANK(E7)),REPT("«",MATCH(E7,J7:N7,0)),"") ->  | G7: =LEN(F7) -> 0 | H7: ««« | J7: We are still planning a formal encouragement program. | K7: We encourage innovative water saving ideas on small projects only. | L7: We encourage innovative water saving ideas on small and medium projects only. | M7: We encourage innovative water saving ideas on small and large projects. | N7: We encourage innovative water saving ideas on small, large and significant infrastructure projects. | O7: 18
B8: 2 | C8: Management Structures | F8: =REPT("«",G8) ->  | G8: =ROUND(AVERAGE(G9:G12),0) -> 0 | O8: 17
B9: a | C9: Maintenance procedures | D9: How does your organisation include water efficiency in maintenance procedures? | F9: =IF(NOT(ISBLANK(E9)),REPT("«",MATCH(E9,J9:N9,0)),"") ->  | G9: =LEN(F9) -> 0 | H9: ««« | J9: We are still planning the formal inclusion of water efficiency in our maintenance procedures. | K9: We formally consider water efficiency in our maintenance procedures. | L9: We formally consider end use specific water efficiency in our maintenance procedures. | M9: We have end use specific guidelines for ensuring water efficiency in our maintenance procedures. | N9: We have end use specific guidelines with a scheduled periodic review for ensuring water efficiency in our maintenance procedures. | O9: 16
B10: b | C10: Operating procedures | D10: How does your organisation include water efficiency in operating procedures? | F10: =IF(NOT(ISBLANK(E10)),REPT("«",MATCH(E10,J10:N10,0)),"") ->  | G10: =LEN(F10) -> 0 | H10: ««« | J10: We are planning to include water efficiency in our operating procedures . | K10: Broad consideration of water conservation issues | L10: Usage specific consideration of water conservation | M10: Usage specific guidance for ensuring water conservation | N10: Usage specific guidance for ensuring water conservation with review/inspection periods set | O10: 15
B11: c | C11: Water Efficiency Policy (WEP) | D11: Does your organisation have a water efficiency policy? What plans and commitments does the policy contain? | F11: =IF(NOT(ISBLANK(E11)),REPT("«",MATCH(E11,J11:N11,0)),"") ->  | G11: =LEN(F11) -> 0 | H11: ««« | J11: No water efficiency policy exists | K11: WEP includes broad consideration of water conservation issues with no commitments | L11: WEP includes broad consideration of water conservation issues with non specific commitments | M11: WEP includes broad consideration of water conservation issues with specific commitments | N11: WEP includes broad consideration of water conservation issues with specific quantifiable commitments | O11: 14
B12: d | C12: Strategic plan link | D12: What are the links between the water efficiency policy and the organisation’s overall strategic plan? | F12: =IF(NOT(ISBLANK(E12)),REPT("«",MATCH(E12,J12:N12,0)),"") ->  | G12: =LEN(F12) -> 0 | H12: ««« | J12: No linkage exists | K12: Strategic plan includes broad consideration of water conservation issues with no commitments | L12: Strategic plan includes broad consideration of water conservation issues with non specific commitments | M12: Strategic plan includes broad consideration of water conservation issues with specific financial commitments | N12: Strategic plan includes broad consideration of water conservation issues with specific financial commitments and quantifiable targets | O12: 13
B13: 3 | C13: Awareness | F13: =REPT("«",G13) ->  | G13: =ROUND(AVERAGE(G14:G15),0) -> 0 | O13: 12
B14: a | C14: Understanding of potential savings | D14: How well do you understand the potential for the organisation to save water? | F14: =IF(NOT(ISBLANK(E14)),REPT("«",MATCH(E14,J14:N14,0)),"") ->  | G14: =LEN(F14) -> 0 | H14: ««« | J14: No understanding | K14: Poor | L14: Fair | M14: Good | N14: Detailed understanding | O14: 11
B15: b | C15: Training and awareness procedures | D15: What training procedures do you have, how frequently are staff trained and do you run awareness campaigns? | F15: =IF(NOT(ISBLANK(E15)),REPT("«",MATCH(E15,J15:N15,0)),"") ->  | G15: =LEN(F15) -> 0 | H15: ««« | J15: No training | K15: Standard maintenance training | L15: Specific maintenance training, including water efficiency issues | M15: Specific maintenance training, including water efficiency issues and some communication of issues to employees | N15: Specific maintenance training, including water efficiency issues and general employee awareness campaign | O15: 10
B16: 4 | C16: Reporting | F16: =REPT("«",G16) ->  | G16: =ROUND(AVERAGE(G17:G19),0) -> 0 | O16: 9
B17: a | C17: Water metering and monitoring | D17: Do you have sub-metering of water consumption within your premises? How is this data collected? | F17: =IF(NOT(ISBLANK(E17)),REPT("«",MATCH(E17,J17:N17,0)),"") ->  | G17: =LEN(F17) -> 0 | H17: ««« | J17: Main meter only | K17: Main meter and sub-meters on all major water using equipment - no recording | L17: Main meter and sub-meters read monthly | M17: Main meter and sub-meters read daily or weekly | N17: Permanent data logging | O17: 8
B18: b | C18: Targets and KPIs | D18: Does your organisation have water efficiency targets in place? | F18: =IF(NOT(ISBLANK(E18)),REPT("«",MATCH(E18,J18:N18,0)),"") ->  | G18: =LEN(F18) -> 0 | H18: ««« | J18: No targets | K18: General targets for specific plant i.e. cooling towers | L18: General improvement target | M18: Quantifiable targets for overall organisation | N18: Best practice targets | O18: 7
B19: c | C19: Reporting procedures | D19: Do you track and report on water consumption? | F19: =IF(NOT(ISBLANK(E19)),REPT("«",MATCH(E19,J19:N19,0)),"") ->  | G19: =LEN(F19) -> 0 | H19: ««« | J19: No reporting procedures | K19: Overall consumption reported to site manager | L19: Quarterly consumption reported to site manager | M19: Monthly consumption reporting to site manager | N19: Monthly consumption reporting to site manager and inclusion in organisations annual report | O19: 6
B20: 5 | C20: Investment | F20: =REPT("«",G20) ->  | G20: =ROUND(AVERAGE(G21:G23),0) -> 0 | O20: 5
B21: a | C21: Maintenance budget | D21: What funding is available within the maintenance budget for water conservation? | F21: =IF(NOT(ISBLANK(E21)),REPT("«",MATCH(E21,J21:N21,0)),"") ->  | G21: =LEN(F21) -> 0 | H21: ««« | J21: No budget | K21: Funding for standard leakage expenses only | L21: Funding available for leakage reduction | M21: Funding available for leakage reduction and cooling tower maintenance | N21: Funding available for leakage reduction and cooling tower maintenance. Reporting costs included within budget. | O21: 4
B22: b | C22: Capital expenditure budget | D22: Does your CAPEX budget include an allowance for water saving measures? | F22: =IF(NOT(ISBLANK(E22)),REPT("«",MATCH(E22,J22:N22,0)),"") ->  | G22: =LEN(F22) -> 0 | H22: ««« | J22: No budget | K22: Standard CAPEX including fixture upgrades | L22: Budget allowed for fixture retrofit program | M22: Budget allowed for fixture retrofit and minor plant upgrades | N22: Budget allowed for major water reduction scheme/s | O22: 3
B23: c | C23: Operating budget (including offsets) | D23: Does your operating budget include an allowance for water saving measures? | F23: =IF(NOT(ISBLANK(E23)),REPT("«",MATCH(E23,J23:N23,0)),"") ->  | G23: =LEN(F23) -> 0 | H23: ««« | J23: No budget | K23: Budget for minor operational changes | L23: Budget for minor new conservation processes | M23: Budget for new conservation processes such as stormwater harvesting | N23: Budget for major new conservation processes such as onsite recycling | O23: 2
J24: ¶ | K24: ¶¶ | L24: ¶¶¶ | M24: ¶¶¶¶ | N24: ¶¶¶¶¶

Sheet 3 Management Actions
B2: 2. Water Management Review | F2: Business or Other Non-Residential Water Efficiency Rating: | I2: =ROUND(AVERAGE(I5:I7,I9:I12,I14:I15,I17:I19,I21:I23),0) -> 0
B3: Management element | D3: Description | E3: Preferred rating | F3: Actual current rating | G3: Target management achievement indicator | H3: Target rating | I3: Length | J3: Action measure details | K3: Person responsible (nominate officer) | L3: Target completion date | M3: Date completed
B4: 1 | C4: General Management | H4: =REPT("«",I4) ->  | I4: =ROUND(AVERAGE(I5:I7),0) -> 0 | O4: 1 | P4: 2 | Q4: 3 | R4: 4 | S4: 5 | T4: 21
B5: a | C5: Management commitment | D5: How has your management planned to make operations water efficient? | E5: ='2 Management Review'!H5 -> ««« | F5: ='2 Management Review'!F5 ->  | H5: =IF(NOT(ISBLANK(G5)),REPT("«",MATCH(G5,O5:S5,0)),"") ->  | I5: =LEN(H5) -> 0 | O5: We are still planning our formal written commitment | P5: Our floor managers have a formal written commitment | Q5: Our group managers have a formal written commitment | R5: Our area/sector managers have a formal written commitment | S5: Our board has a formal written commitment | T5: 20
B6: b | C6: Responsibilities identified and delegated | D6: Has responsibility for water efficiency been assigned to a suitably qualified person or group? | E6: ='2 Management Review'!H6 -> ««« | F6: ='2 Management Review'!F6 ->  | H6: =IF(NOT(ISBLANK(G6)),REPT("«",MATCH(G6,O6:S6,0)),"") ->  | I6: =LEN(H6) -> 0 | O6: We are still planning our water efficiency management delegation | P6: Our floor managers are responsible for water efficiency | Q6: All levels from our group managers downward are responsible for water efficiency | R6: All levels from our area/sector managers downward are responsible for water efficiency | S6: All levels from our board downward are responsible for water efficiency | T6: 19
B7: c | C7: Encouraging innovation and new technology | D7: Does the organisation encourage innovative water saving ideas? | E7: ='2 Management Review'!H7 -> ««« | F7: ='2 Management Review'!F7 ->  | H7: =IF(NOT(ISBLANK(G7)),REPT("«",MATCH(G7,O7:S7,0)),"") ->  | I7: =LEN(H7) -> 0 | O7: We are still planning a formal encouragement program. | P7: We encourage innovative water saving ideas on small projects only. | Q7: We encourage innovative water saving ideas on small and medium projects only. | R7: We encourage innovative water saving ideas on small and large projects. | S7: We encourage innovative water saving ideas on small, large and significant infrastructure projects. | T7: 18
B8: 2 | C8: Management Structures | H8: =REPT("«",I8) ->  | I8: =ROUND(AVERAGE(I9:I12),0) -> 0 | T8: 17
B9: a | C9: Maintenance procedures | D9: How does your organisation include water efficiency in maintenance procedures? | E9: ='2 Management Review'!H9 -> ««« | F9: ='2 Management Review'!F9 ->  | H9: =IF(NOT(ISBLANK(G9)),REPT("«",MATCH(G9,O9:S9,0)),"") ->  | I9: =LEN(H9) -> 0 | O9: We are still planning the formal inclusion of water efficiency in our maintenance procedures. | P9: We formally consider water efficiency in our maintenance procedures. | Q9: We formally consider end use specific water efficiency in our maintenance procedures. | R9: We have end use specific guidelines for ensuring water efficiency in our maintenance procedures. | S9: We have end use specific guidelines with a scheduled periodic review for ensuring water efficiency in our maintenance procedures. | T9: 16
B10: b | C10: Operating procedures | D10: How does your organisation include water efficiency in operating procedures? | E10: ='2 Management Review'!H10 -> ««« | F10: ='2 Management Review'!F10 ->  | H10: =IF(NOT(ISBLANK(G10)),REPT("«",MATCH(G10,O10:S10,0)),"") ->  | I10: =LEN(H10) -> 0 | O10: We are planning to include water efficiency in our operating procedures . | P10: Broad consideration of water conservation issues | Q10: Usage specific consideration of water conservation | R10: Usage specific guidance for ensuring water conservation | S10: Usage specific guidance for ensuring water conservation with review/inspection periods set | T10: 15
B11: c | C11: Water Efficiency Policy (WEP) | D11: Does your organisation have a water efficiency policy? What plans and commitments does the policy contain? | E11: ='2 Management Review'!H11 -> ««« | F11: ='2 Management Review'!F11 ->  | H11: =IF(NOT(ISBLANK(G11)),REPT("«",MATCH(G11,O11:S11,0)),"") ->  | I11: =LEN(H11) -> 0 | O11: No water efficiency policy exists | P11: WEP includes broad consideration of water conservation issues with no commitments | Q11: WEP includes broad consideration of water conservation issues with non specific commitments | R11: WEP includes broad consideration of water conservation issues with specific commitments | S11: WEP includes broad consideration of water conservation issues with specific quantifiable commitments | T11: 14
B12: d | C12: Strategic plan link | D12: What are the links between the water efficiency policy and the organisation’s overall strategic plan? | E12: ='2 Management Review'!H12 -> ««« | F12: ='2 Management Review'!F12 ->  | H12: =IF(NOT(ISBLANK(G12)),REPT("«",MATCH(G12,O12:S12,0)),"") ->  | I12: =LEN(H12) -> 0 | O12: No linkage exists | P12: Strategic plan includes broad consideration of water conservation issues with no commitments | Q12: Strategic plan includes broad consideration of water conservation issues with non specific commitments | R12: Strategic plan includes broad consideration of water conservation issues with specific financial commitments | S12: Strategic plan includes broad consideration of water conservation issues with specific financial commitments and quantifiable targets | T12: 13
B13: 3 | C13: Awareness | H13: =REPT("«",I13) ->  | I13: =ROUND(AVERAGE(I14:I15),0) -> 0 | T13: 12
B14: a | C14: Understanding of potential savings | D14: How well do you understand the potential for the organisation to save water? | E14: ='2 Management Review'!H14 -> ««« | F14: ='2 Management Review'!F14 ->  | H14: =IF(NOT(ISBLANK(G14)),REPT("«",MATCH(G14,O14:S14,0)),"") ->  | I14: =LEN(H14) -> 0 | O14: No understanding | P14: Poor | Q14: Fair | R14: Good | S14: Detailed understanding | T14: 11
B15: b | C15: Training and awareness procedures | D15: What training procedures do you have, how frequently are staff trained and do you run awareness campaigns? | E15: ='2 Management Review'!H15 -> ««« | F15: ='2 Management Review'!F15 ->  | H15: =IF(NOT(ISBLANK(G15)),REPT("«",MATCH(G15,O15:S15,0)),"") ->  | I15: =LEN(H15) -> 0 | O15: No training | P15: Standard maintenance training | Q15: Specific maintenance training, including water efficiency issues | R15: Specific maintenance training, including water efficiency issues and some communication of issues to employees | S15: Specific maintenance training, including water efficiency issues and general employee awareness campaign | T15: 10
B16: 4 | C16: Reporting | H16: =REPT("«",I16) ->  | I16: =ROUND(AVERAGE(I17:I19),0) -> 0 | T16: 9
B17: a | C17: Water metering and monitoring | D17: Do you have water sub-metering? How is this data collected? | E17: ='2 Management Review'!H17 -> ««« | F17: ='2 Management Review'!F17 ->  | H17: =IF(NOT(ISBLANK(G17)),REPT("«",MATCH(G17,O17:S17,0)),"") ->  | I17: =LEN(H17) -> 0 | O17: Main meter only | P17: Main meter and sub-meters on all major water using equipment - no recording | Q17: Main meter and sub-meters read monthly | R17: Main meter and sub-meters read weekly | S17: Permanent data logging | T17: 8
B18: b | C18: Targets and KPIs | D18: Does your organisation have water efficiency targets in place? | E18: ='2 Management Review'!H18 -> ««« | F18: ='2 Management Review'!F18 ->  | H18: =IF(NOT(ISBLANK(G18)),REPT("«",MATCH(G18,O18:S18,0)),"") ->  | I18: =LEN(H18) -> 0 | O18: No targets | P18: General targets for specific plant i.e. cooling towers | Q18: General improvement target | R18: Quantifiable targets for overall organisation | S18: Best practice targets | T18: 7
B19: c | C19: Reporting procedures | D19: Do you track and report on water consumption? | E19: ='2 Management Review'!H19 -> ««« | F19: ='2 Management Review'!F19 ->  | H19: =IF(NOT(ISBLANK(G19)),REPT("«",MATCH(G19,O19:S19,0)),"") ->  | I19: =LEN(H19) -> 0 | O19: No reporting procedures | P19: Overall consumption reported to site manager | Q19: Quarterly consumption reported to site manager | R19: Monthly consumption reporting to site manager | S19: Monthly consumption reporting to site manager and inclusion in organisations annual report | T19: 6
B20: 5 | C20: Investment | H20: =REPT("«",I20) ->  | I20: =ROUND(AVERAGE(I21:I23),0) -> 0 | T20: 5
B21: a | C21: Maintenance budget | D21: What funding is available within the maintenance budget for water conservation? | E21: ='2 Management Review'!H21 -> ««« | F21: ='2 Management Review'!F21 ->  | H21: =IF(NOT(ISBLANK(G21)),REPT("«",MATCH(G21,O21:S21,0)),"") ->  | I21: =LEN(H21) -> 0 | O21: No budget | P21: Funding for standard leakage expenses only | Q21: Funding available for leakage reduction | R21: Funding available for leakage reduction and cooling tower maintenance | S21: Funding available for leakage reduction and cooling tower maintenance. Reporting costs included within budget. | T21: 4
B22: b | C22: Capital expenditure budget | D22: Does your CAPEX budget include an allowance for water saving measures? | E22: ='2 Management Review'!H22 -> ««« | F22: ='2 Management Review'!F22 ->  | H22: =IF(NOT(ISBLANK(G22)),REPT("«",MATCH(G22,O22:S22,0)),"") ->  | I22: =LEN(H22) -> 0 | O22: No budget | P22: Standard CAPEX including fixture upgrades | Q22: Budget allowed for fixture retrofit program | R22: Budget allowed for fixture retrofit and minor plant upgrades | S22: Budget allowed for major water reduction scheme/s | T22: 3
B23: c | C23: Operating budget (including offsets) | D23: Does your operating budget include an allowance for water saving measures? | E23: ='2 Management Review'!H23 -> ««« | F23: ='2 Management Review'!F23 ->  | H23: =IF(NOT(ISBLANK(G23)),REPT("«",MATCH(G23,O23:S23,0)),"") ->  | I23: =LEN(H23) -> 0 | O23: No budget | P23: Budget for minor operational changes | Q23: Budget for minor new conservation processes | R23: Budget for new conservation processes such as stormwater harvesting | S23: Budget for major new conservation processes such as onsite recycling | T23: 2
O24: ¶ | P24: ¶¶ | Q24: ¶¶¶ | R24: ¶¶¶¶ | S24: ¶¶¶¶¶

Sheet 4 End Use Definitions
B2: 4. End Use Categories
B3: An End Use is a functional category of water use within your premises. A number of End Uses are pre defined. However, this sheet can be used to define other significant end uses at your premises. You can only define an End Use once. If a cell goes red, it means that there is a blank cell above it, or the cell's value is a duplicate in the list. Cells in column C must be consecutive, with no blank cells in between defined end uses, as this will affect the rest of the tool's operation.
B5: End use category title | E5: Details
B6: 1 | C6: Toilets | D6: Standard end use definitions - All fixed
B7: 2 | C7: Taps
B8: 3 | C8: Showers
B9: 4 | C9: Urinals - single stall
B10: 5 | C10: Urinals - trough
B11: 6 | C11: Unaccounted
B12: 7 | C12: Leakage
B13: 8 | C13: Cooling | D13: Any evaporative cooling systems used on the premises (delete if not required) | F13: Enter other major End Uses Categories from here, down.
B14: 9 | C14: Fire Testing | D14: Any water use as a result of testing of fire fighting systems (delete if not required)
B15: 10
B16: 11
B17: 12
B18: 13
B19: 14
B20: 15
B21: 16
B22: 17
B23: 18
B24: 19
B25: 20
B26: 21
B27: 22
B28: 23
B29: 24

Sheet 5-1A Taps & Showers
B2: 5-1A - Taps & Showers
C3: Current Fixture Information | L3: Proposed Actions | R3: Results
B4: Location | C4: Fixture type count - number of like fixtures | E4: Average duration of use | F4: Average number of users per day | G4: Average usage per person | H4: Number of days used | I4: Current usage rate | J4: % of use which is volumetric i.e. fixed | K4: General condition | L4: Does the fixture require changes to improve water efficiency? | M4: Action | P4: Completion date | Q4: New usage rate | R4: Current usage (ML per year) | S4: Water saving (ML per year) | T4: Water saving (%)
Q7: Taps | R7: =SUMIF($C$15:$C$736,">0",$R$15:$R$736) -> 0 | S7: =SUMIF($C$15:$C$736,">0",$S$15:$S$736) -> 0 | T7: =S7/R7*100 -> 
Q8: Showers | R8: =SUMIF($D$15:$D$736,">0",$R$15:$R$736) -> 0 | S8: =SUMIF($D$15:$D$736,">0",$S$15:$S$736) -> 0 | T8: =S8/R8*100 -> 
M9: =COUNTIF(M15:M31,"Y") -> 0 | N9: =COUNTIF(N15:N31,"Y") -> 0 | O9: =COUNTIF(O15:O31,"Y") -> 0 | P9: Total | R9: =SUM(R7:R8) -> 0 | S9: =SUM(S7:S8) -> 0 | T9: =S9/R9*100 -> 
B10: Fixture location e.g. | C10: Tap | D10: Shower | E10: Average duration of each use in seconds | F10: Average number of people who use the fixtures each day | G10: Average number of times fixtures are used per person based on audit, observations or typical industry figures | H10: Number of days/year the fixture is used | I10: Measured flow rate-typical (L/min) | J10: Specify what % of this use is fixed | K10: Specify the condition of the fixture | L10: Please list: | M10: Repair | N10: Add device | O10: Replace | P10: Date in which action will be completed | Q10: Proposed flow rate (L/min) | R10: Calculated and/or measured current consumption | S10: Estimated savings from original tap or shower | T10: Savings as % of use
B11: Building level | L11: · ‘Y’ for Yes,
B12: Kitchen | L12: · ‘N’ for No
B13: E.g. Kitchen | C13: 5 | E13: 8 | F13: 25 | G13: 2 | H13: 200 | I13: 12 | J13: 0 | K13: Leaking | L13: Y | N13: Y | P13: 2010-08-29 | Q13: 9 | R13: ="eg: "&TEXT(G13*F13*E13/60*(I13)/1000000*H13,"0.000000") -> eg: 0.016000 | S13: ="eg: "&TEXT(G13*F13*E13/60*(1-J13)*(I13-Q13)/1000000*H13,"0.000000") -> eg: 0.004000 | T13: ="eg: "&TEXT(VALUE(RIGHT(S13,LEN(S13)-3))/VALUE(RIGHT(R13,LEN(R13)-3)),"0.0%") -> eg: 25.0%
B14: E.g. Bathroom | D14: 1 | E14: =4*60 -> 240 | F14: 10 | G14: 1 | H14: =365-52*2 -> 261 | I14: 20 | J14: 0 | K14: Good | L14: Y | O14: Y | P14: 2010-08-25 | Q14: 9 | R14: ="eg: "&TEXT(G14*F14*E14/60*(I14)/1000000*H14,"0.000000") -> eg: 0.208800 | S14: ="eg: "&TEXT(G14*F14*E14/60*(1-J14)*(I14-Q14)/1000000*H14,"0.000000") -> eg: 0.114840 | T14: ="eg: "&TEXT(VALUE(RIGHT(S14,LEN(S14)-3))/VALUE(RIGHT(R14,LEN(R14)-3)),"0.0%") -> eg: 55.0%
R15: =F15*G15*E15/60*(I15)/1000000*H15 -> 0 | S15: =IF(L15="N",0,F15*G15*E15*(1-J15)/60*(I15-Q15)/1000000*H15) -> 0 | T15: =IF(L15="N",0,S15/R15) -> 
R16: =F16*G16*E16/60*(I16)/1000000*H16 -> 0 | S16: =IF(L16="N",0,F16*G16*E16*(1-J16)/60*(I16-Q16)/1000000*H16) -> 0
R17: =F17*G17*E17/60*(I17)/1000000*H17 -> 0 | S17: 0
R18: =F18*G18*E18/60*(I18)/1000000*H18 -> 0 | S18: 0
R19: 0 | S19: 0
R20: 0 | S20: 0
R21: 0 | S21: 0
R22: 0 | S22: 0
R23: 0 | S23: 0
R24: 0 | S24: 0
R25: 0 | S25: 0
R26: 0 | S26: 0
R27: 0 | S27: 0
R28: 0 | S28: 0
R29: 0 | S29: 0
R30: 0 | S30: 0
R31: 0 | S31: 0
R32: 0 | S32: 0
R33: 0 | S33: 0
R34: 0 | S34: 0
R35: 0 | S35: 0
R36: 0 | S36: 0
R37: 0 | S37: 0
R38: 0 | S38: 0
R39: 0 | S39: 0
R40: 0 | S40: 0
R41: 0 | S41: 0
R42: 0 | S42: 0
R43: 0 | S43: 0
R44: 0 | S44: 0
R45: 0 | S45: 0
R46: 0 | S46: 0
R47: 0 | S47: 0
R48: 0 | S48: 0
R49: 0 | S49: 0
R50: 0 | S50: 0
R51: 0 | S51: 0
R52: 0 | S52: 0
R53: 0 | S53: 0
R54: 0 | S54: 0
R55: 0 | S55: 0
R56: 0 | S56: 0
R57: 0 | S57: 0
R58: 0 | S58: 0
R59: 0 | S59: 0
R60: 0 | S60: 0
R61: 0 | S61: 0
R62: 0 | S62: 0
R63: 0 | S63: 0
R64: 0 | S64: 0
R65: 0 | S65: 0
R66: 0 | S66: 0
R67: 0 | S67: 0
R68: 0 | S68: 0
R69: 0 | S69: 0
R70: 0 | S70: 0
R71: 0 | S71: 0
R72: 0 | S72: 0
R73: 0 | S73: 0
R74: 0 | S74: 0
R75: 0 | S75: 0
R76: 0 | S76: =IF(L76="N",0,F76*G76*E76*(1-J76)/60*(I76-Q76)/1000000*H76) -> 0 | T76: =IF(L76="N",0,S76/R76) -> 
R77: =F77*G77*E77/60*(I77)/1000000*H77 -> 0 | S77: 0
R78: 0 | S78: 0
R79: 0 | S79: 0
R80: 0 | S80: 0
R81: 0 | S81: 0
R82: 0 | S82: 0
R83: 0 | S83: 0
R84: 0 | S84: 0
R85: 0 | S85: 0
R86: 0 | S86: 0
R87: 0 | S87: 0
R88: 0 | S88: 0
R89: 0 | S89: 0
R90: 0 | S90: 0
R91: 0 | S91: 0
R92: 0 | S92: 0
R93: 0 | S93: 0
R94: 0 | S94: 0
R95: 0 | S95: 0
R96: 0 | S96: 0
R97: 0 | S97: 0
R98: 0 | S98: 0
R99: 0 | S99: 0
R100: 0 | S100: 0
R101: 0 | S101: 0
R102: =F102*G102*E102/60*(I102)/1000000*H102 -> 0 | S102: 0
R103: 0 | S103: 0
R104: 0 | S104: 0
R105: 0 | S105: 0
R106: 0 | S106: 0
R107: 0 | S107: 0
R108: 0 | S108: 0
R109: 0 | S109: 0
R110: 0 | S110: 0
R111: 0 | S111: 0
R112: 0 | S112: 0
R113: 0 | S113: 0
R114: 0 | S114: 0
R115: 0 | S115: 0
R116: 0 | S116: 0
R117: 0 | S117: 0
R118: 0 | S118: 0
R119: 0 | S119: 0
R120: 0 | S120: 0
R121: 0 | S121: 0
R122: 0 | S122: 0
R123: 0 | S123: 0
R124: 0 | S124: 0
R125: 0 | S125: 0
R126: 0 | S126: 0
R127: 0 | S127: 0
R128: 0 | S128: 0
R129: 0 | S129: 0
R130: 0 | S130: 0
R131: 0 | S131: 0
R132: 0 | S132: 0
R133: 0 | S133: 0
R134: 0 | S134: 0
R135: 0 | S135: 0
R136: 0 | S136: 0
R137: 0 | S137: 0
R138: 0 | S138: 0
R139: 0 | S139: 0
R140: 0 | S140: =IF(L140="N",0,F140*G140*E140*(1-J140)/60*(I140-Q140)/1000000*H140) -> 0 | T140: =IF(L140="N",0,S140/R140) -> 
R141: =F141*G141*E141/60*(I141)/1000000*H141 -> 0 | S141: 0
R142: 0 | S142: 0
R143: 0 | S143: 0
R144: 0 | S144: 0
R145: 0 | S145: 0
R146: 0 | S146: 0
R147: 0 | S147: 0
R148: 0 | S148: 0
R149: 0 | S149: 0
R150: 0 | S150: 0
R151: 0 | S151: 0
R152: 0 | S152: 0
R153: 0 | S153: 0
R154: 0 | S154: 0
R155: 0 | S155: 0
R156: 0 | S156: 0
R157: 0 | S157: 0
R158: 0 | S158: 0
R159: 0 | S159: 0
R160: 0 | S160: 0
R161: 0 | S161: 0
R162: 0 | S162: 0
R163: 0 | S163: 0
R164: 0 | S164: 0
R165: 0 | S165: 0
R166: 0 | S166: 0
R167: 0 | S167: 0
R168: 0 | S168: 0
R169: 0 | S169: 0
R170: 0 | S170: 0
R171: 0 | S171: 0
R172: 0 | S172: 0
R173: 0 | S173: 0
R174: 0 | S174: 0
R175: 0 | S175: 0
R176: 0 | S176: 0
R177: 0 | S177: 0
R178: 0 | S178: 0
R179: 0 | S179: 0
R180: 0 | S180: 0
R181: 0 | S181: 0
R182: 0 | S182: 0
R183: 0 | S183: 0
R184: 0 | S184: 0
R185: 0 | S185: 0
R186: 0 | S186: 0
R187: 0 | S187: 0
R188: 0 | S188: 0
R189: 0 | S189: 0
R190: 0 | S190: 0
R191: 0 | S191: 0
R192: 0 | S192: 0
R193: 0 | S193: 0
R194: 0 | S194: 0
R195: 0 | S195: 0
R196: 0 | S196: 0
R197: 0 | S197: 0
R198: 0 | S198: 0
R199: 0 | S199: 0
R200: 0 | S200: 0
R201: 0 | S201: 0
R202: 0 | S202: 0
R203: 0 | S203: 0
... 533 more rows

Sheet 5-1B Toilets & Urinals
B2: 5-1B - Toilets & Urinals
C3: Current Fixture Information | P3: Proposed Actions | Y3: Results | AF3: Urinals
B4: Location | C4: Fixture type count - number of like fixtures | F4: Current use | K4: Average number of users per day | L4: Average usage per person | M4: Number of days used | N4: General condition | O4: Does the fixture require changes to improve water efficiency? | P4: Action | S4: Completion date | T4: New use | Y4: Current water use (ML per year) | Z4: Water savings (ML per year) | AA4: Water savings (%) | AF4: =I10 -> Equipment type | AG4: =J10 -> Operation type
AF5: Urinal suite (cistern) | AG5: Conscious operation
U6: Toilet | Y6: =SUMIF($C$15:$C$739,">0",$Y$15:$Y$739) -> 0 | Z6: =SUMIF($C$15:$C$739,">0",$Z$15:$Z$739) -> 0 | AA6: =Z6/Y6 ->  | AF6: Urinal suite (flushing valve) | AG6: Demand driven - operation sensitivity at front of the urinal
U7: Urinal - individual | Y7: =SUMIF($D$15:$D$739,">0",$Y$15:$Y$739) -> 0 | Z7: =SUMIF($D$15:$D$739,">0",$Z$15:$Z$739) -> 0 | AA7: =Z7/Y7 ->  | AF7: Urinal only | AG7: Demand driven - urine sensor device
U8: Urinal - trough | Y8: =SUMIF($E$15:$E$739,">0",$Y$15:$Y$739) -> 0 | Z8: =SUMIF($E$15:$E$739,">0",$Z$15:$Z$739) -> 0 | AA8: =Z8/Y8 ->  | AF8: Cistern only | AG8: Smart demand - sensor field at the front of the urinal
F9: Toilets | H9: Urinals | P9: =COUNTIF(P15:P739,"Y") -> 0 | Q9: =COUNTIF(Q15:Q739,"Y") -> 0 | R9: =COUNTIF(R15:R739,"Y") -> 0 | T9: Toilet | V9: Urinal Total | Y9: =SUM(Y6:Y8) -> 0 | Z9: =SUM(Z6:Z8) -> 0 | AA9: =Z9/Y9 ->  | AF9: Flushing valve only | AG9: Smart demand - urine sensor
B10: Fixture location e.g. | C10: Toilet | D10: Urinal - Single Stall | E10: Urinal - Trough | F10: Current flush volume (type) | G10: Current flush volume (L/flush) | H10: Current flush volume (L/flush or L/0.6m of trough) | I10: Equipment type | J10: Operation type | K10: Average number of people who use the fixtures each day | L10: Number of uses per person based on audit, observations or typical industry figures | M10: Number of days/year the fixtures are used | N10: Specify the condition of the fixture | O10: Please list: | P10: Repair | Q10: Add Device | R10: Replace | S10: Specify the date by which each line item will be completed | T10: Proposed toilet type | U10: Proposed flush volume (L) | V10: Proposed flush volume (L) | W10: =I10 -> Equipment type | X10: =J10 -> Operation type | Y10: Estimated current water use with existing fixtures (ML/day) | Z10: Estimated savings from original toilet or urinal (ML/day) | AA10: Estimated savings from original toilet or urinal (%) | AF10: Combination of a urinal and a cistern | AG10: Urinal only
B11: Facility level | O11: · ‘Y’ for Yes | AF11: Combination of a urinal and a flushing valve
B12: Change Room | O12: · ‘N’ for No
B13: E.g. Bathroom 1 | C13: 3 | F13: 12 | G13: =CHOOSE(IF(F13="4½ / 3",1,IF(F13="6 / 3",2,IF(F13="9 / 4½",3,IF(F13="11",4,5)))),(4.5+4*3)/5,(6+4*3)/5,(9+4*4.5)/5,11,IF(F13="12",12,"")) -> 12 | K13: 25 | L13: 2 | M13: 261 | N13: Leaking | O13: Y | R13: Y | S13: 2010-08-24 | T13: 4½ / 3 | U13: =IF(T13="4½ / 3",(4.5+4*3)/5,IF(T13="6 / 3",(6+4*3)/5,"")) -> 3.3 | Y13: ="e.g.: "&TEXT(IF(C13>0,G13,H13)*K13*L13*M13/1000000,"0.000000") -> e.g.: 0.156600 | Z13: ="e.g.: "&TEXT(IF(C13>0,IF(U13=0,0,K13*M13*L13*(G13-U13)),IF(OR(D13>0,E13>0),IF(V13=0,0,K13*M13*(H13-V13))))/1000000,"0.000000") -> e.g.: 0.113535 | AA13: ="e.g.: "&TEXT(VALUE(RIGHT(Z13,LEN(Z13)-6))/VALUE(RIGHT(Y13,LEN(Y13)-6)),"0.0%") -> e.g.: 72.5%
B14: E.g. Bathroom 1 | D14: 5 | H14: 4 | I14: Urinal suite (flushing valve) | J14: Demand driven - operation sensitivity at front of the urinal | K14: 15 | L14: 3 | M14: =365-52*2 -> 261 | N14: Good | O14: Y | Q14: Y | S14: 2010-08-29 | U14: =IF(T14="4½ / 3",(4.5+4*3)/5,IF(T14="6 / 3",(6+4*3)/5,"")) ->  | V14: 1.5 | W14: Urinal suite (flushing valve) | X14: Smart demand - urine sensor | Y14: ="e.g.: "&TEXT(IF(C14>0,G14,H14)*K14*L14*M14/1000000,"0.000000") -> e.g.: 0.046980 | Z14: ="e.g.: "&TEXT(IF(C14>0,IF(U14=0,0,K14*M14*L14*(G14-U14)),IF(OR(D14>0,E14>0),IF(V14=0,0,K14*M14*L14*(H14-V14))))/1000000,"0.000000") -> e.g.: 0.029363 | AA14: ="e.g.: "&TEXT(VALUE(RIGHT(Z14,LEN(Z14)-6))/VALUE(RIGHT(Y14,LEN(Y14)-6)),"0.0%") -> e.g.: 62.5%
U15: =CHOOSE(IF(T15="4½ / 3",1,IF(T15="6 / 3",2,IF(T15="9 / 4½",3,IF(T15="11",4,5)))),(4.5+4*3)/5,(6+4*3)/5,(9+4*4.5)/5,11,IF(T15="12",12,"")) ->  | Y15: =IF(C15>0,G15,H15)*K15*L15*M15/1000000 -> 0 | Z15: =IF(O15="N",0,IF(C15>0,K15*M15*L15*(G15-U15)/1000000,IF(OR(D15>0,E15>0),K15*L15*M15*(H15-V15))/1000000)) -> 0 | AA15: =IF(O15="N",0,Z15/Y15) -> 
Y16: 0 | Z16: 0 | AA16: =IF(O16="N",0,Z16/Y16) -> 
Y17: 0 | Z17: 0
Y18: 0 | Z18: 0
Y19: 0 | Z19: 0
Y20: 0 | Z20: 0
Y21: 0 | Z21: 0
Y22: 0 | Z22: 0
Y23: 0 | Z23: 0
Y24: 0 | Z24: 0
Y25: 0 | Z25: 0
Y26: 0 | Z26: 0
Y27: 0 | Z27: 0
Y28: 0 | Z28: 0
Y29: 0 | Z29: 0
Y30: 0 | Z30: 0
Y31: 0 | Z31: 0
Y32: 0 | Z32: 0
Y33: 0 | Z33: 0
Y34: 0 | Z34: 0
Y35: 0 | Z35: 0
Y36: 0 | Z36: 0
Y37: 0 | Z37: 0
Y38: 0 | Z38: 0
Y39: 0 | Z39: 0
Y40: 0 | Z40: 0
Y41: 0 | Z41: 0
Y42: 0 | Z42: 0
Y43: 0 | Z43: 0
Y44: 0 | Z44: 0
Y45: 0 | Z45: 0
Y46: 0 | Z46: 0
Y47: 0 | Z47: 0
Y48: 0 | Z48: 0
Y49: 0 | Z49: 0
Y50: 0 | Z50: 0
Y51: 0 | Z51: 0
Y52: 0 | Z52: 0
Y53: 0 | Z53: 0
Y54: 0 | Z54: 0
Y55: 0 | Z55: 0
Y56: 0 | Z56: 0
Y57: 0 | Z57: 0
Y58: 0 | Z58: 0
Y59: 0 | Z59: 0
Y60: 0 | Z60: 0
Y61: 0 | Z61: 0
Y62: 0 | Z62: 0
Y63: 0 | Z63: 0
Y64: 0 | Z64: 0
Y65: 0 | Z65: 0
Y66: 0 | Z66: 0
Y67: 0 | Z67: 0
Y68: 0 | Z68: 0
Y69: 0 | Z69: 0
Y70: 0 | Z70: 0
Y71: 0 | Z71: 0
Y72: 0 | Z72: 0
Y73: 0 | Z73: 0
Y74: 0 | Z74: 0
Y75: 0 | Z75: 0
Y76: 0 | Z76: 0
G77: =CHOOSE(IF(F77="4½ / 3",1,IF(F77="6 / 3",2,IF(F77="9 / 4½",3,IF(F77="11",4,5)))),(4.5+4*3)/5,(6+4*3)/5,(9+4*4.5)/5,11,IF(F77="12",12,"")) ->  | Y77: 0 | Z77: 0
Y78: 0 | Z78: 0
U79: =CHOOSE(IF(T79="4½ / 3",1,IF(T79="6 / 3",2,IF(T79="9 / 4½",3,IF(T79="11",4,5)))),(4.5+4*3)/5,(6+4*3)/5,(9+4*4.5)/5,11,IF(T79="12",12,"")) ->  | Y79: =IF(C79>0,G79,H79)*K79*L79*M79/1000000 -> 0 | Z79: =IF(O79="N",0,IF(C79>0,K79*M79*L79*(G79-U79)/1000000,IF(OR(D79>0,E79>0),K79*L79*M79*(H79-V79))/1000000)) -> 0
Y80: 0 | Z80: 0 | AA80: =IF(O80="N",0,Z80/Y80) -> 
Y81: 0 | Z81: 0
Y82: 0 | Z82: 0
Y83: 0 | Z83: 0
Y84: 0 | Z84: 0
Y85: 0 | Z85: 0
Y86: 0 | Z86: 0
Y87: 0 | Z87: 0
Y88: 0 | Z88: 0
Y89: 0 | Z89: 0
Y90: 0 | Z90: 0
Y91: 0 | Z91: 0
Y92: 0 | Z92: 0
Y93: 0 | Z93: 0
Y94: 0 | Z94: 0
Y95: 0 | Z95: 0
Y96: 0 | Z96: 0
Y97: 0 | Z97: 0
Y98: 0 | Z98: 0
Y99: 0 | Z99: 0
Y100: 0 | Z100: 0
Y101: 0 | Z101: 0
Y102: 0 | Z102: 0
Y103: 0 | Z103: 0
Y104: 0 | Z104: 0
Y105: 0 | Z105: 0
Y106: 0 | Z106: 0
Y107: 0 | Z107: 0
Y108: 0 | Z108: 0
Y109: 0 | Z109: 0
Y110: 0 | Z110: 0
Y111: 0 | Z111: 0
Y112: 0 | Z112: 0
Y113: 0 | Z113: 0
Y114: 0 | Z114: 0
Y115: 0 | Z115: 0
Y116: 0 | Z116: 0
Y117: 0 | Z117: 0
Y118: 0 | Z118: 0
Y119: 0 | Z119: 0
Y120: 0 | Z120: 0
Y121: 0 | Z121: 0
Y122: 0 | Z122: 0
Y123: 0 | Z123: 0
Y124: 0 | Z124: 0
Y125: 0 | Z125: 0
Y126: 0 | Z126: 0
Y127: 0 | Z127: 0
Y128: 0 | Z128: 0
Y129: 0 | Z129: 0
Y130: 0 | Z130: 0
Y131: 0 | Z131: 0
Y132: 0 | Z132: 0
Y133: 0 | Z133: 0
Y134: 0 | Z134: 0
Y135: 0 | Z135: 0
Y136: 0 | Z136: 0
Y137: 0 | Z137: 0
Y138: 0 | Z138: 0
Y139: 0 | Z139: 0
Y140: 0 | Z140: 0
G141: =CHOOSE(IF(F141="4½ / 3",1,IF(F141="6 / 3",2,IF(F141="9 / 4½",3,IF(F141="11",4,5)))),(4.5+4*3)/5,(6+4*3)/5,(9+4*4.5)/5,11,IF(F141="12",12,"")) ->  | Y141: 0 | Z141: 0
Y142: 0 | Z142: 0
U143: =CHOOSE(IF(T143="4½ / 3",1,IF(T143="6 / 3",2,IF(T143="9 / 4½",3,IF(T143="11",4,5)))),(4.5+4*3)/5,(6+4*3)/5,(9+4*4.5)/5,11,IF(T143="12",12,"")) ->  | Y143: =IF(C143>0,G143,H143)*K143*L143*M143/1000000 -> 0 | Z143: =IF(O143="N",0,IF(C143>0,K143*M143*L143*(G143-U143)/1000000,IF(OR(D143>0,E143>0),K143*L143*M143*(H143-V143))/1000000)) -> 0
Y144: 0 | Z144: 0 | AA144: =IF(O144="N",0,Z144/Y144) -> 
Y145: 0 | Z145: 0
Y146: 0 | Z146: 0
Y147: 0 | Z147: 0
Y148: 0 | Z148: 0
Y149: 0 | Z149: 0
Y150: 0 | Z150: 0
Y151: 0 | Z151: 0
Y152: 0 | Z152: 0
Y153: 0 | Z153: 0
Y154: 0 | Z154: 0
Y155: 0 | Z155: 0
Y156: 0 | Z156: 0
Y157: 0 | Z157: 0
Y158: 0 | Z158: 0
Y159: 0 | Z159: 0
Y160: 0 | Z160: 0
Y161: 0 | Z161: 0
Y162: 0 | Z162: 0
Y163: 0 | Z163: 0
Y164: 0 | Z164: 0
Y165: 0 | Z165: 0
Y166: 0 | Z166: 0
Y167: 0 | Z167: 0
Y168: 0 | Z168: 0
Y169: 0 | Z169: 0
Y170: 0 | Z170: 0
Y171: 0 | Z171: 0
Y172: 0 | Z172: 0
Y173: 0 | Z173: 0
Y174: 0 | Z174: 0
Y175: 0 | Z175: 0
Y176: 0 | Z176: 0
Y177: 0 | Z177: 0
Y178: 0 | Z178: 0
Y179: 0 | Z179: 0
Y180: 0 | Z180: 0
Y181: 0 | Z181: 0
Y182: 0 | Z182: 0
Y183: 0 | Z183: 0
Y184: 0 | Z184: 0
Y185: 0 | Z185: 0
Y186: 0 | Z186: 0
Y187: 0 | Z187: 0
Y188: 0 | Z188: 0
Y189: 0 | Z189: 0
Y190: 0 | Z190: 0
Y191: 0 | Z191: 0
Y192: 0 | Z192: 0
Y193: 0 | Z193: 0
Y194: 0 | Z194: 0
Y195: 0 | Z195: 0
Y196: 0 | Z196: 0
Y197: 0 | Z197: 0
Y198: 0 | Z198: 0
Y199: 0 | Z199: 0
Y200: 0 | Z200: 0
Y201: 0 | Z201: 0
... 538 more rows

Sheet Quarterly Lookup (hidden)
A1: Month | B1: Quarter Index
A2: 1 | B2: 3
A3: 2 | B3: 3
A4: 3 | B4: 3
A5: 4 | B5: 4
A6: 5 | B6: 4
A7: 6 | B7: 4
A8: 7 | B8: 1
A9: 8 | B9: 1
A10: 9 | B10: 1
A11: 10 | B11: 2
A12: 11 | B12: 2
A13: 12 | B13: 2

Sheet 5-2 Cooling Tower
B2: 5-2 Cooling Towers
D3: Current water use | O3: Proposed water efficiency
B4: Cooling tower name(s) or ID number(s) | D4: Conductivity of make-up water | E4: Conductivity of bleed | F4: Current cycles of concentration | H4: Total bleed | I4: Total consumption | J4: Average daily consumption | K4: Leakage | L4: Leakage (%) | O4: Water saving | P4: Percentage saved | Q4: Proposed cycles of concentration
B5: Units | D5: μS or mg/L | E5: μS or mg/L | F5: CoCi | G5: OK >5? | H5: ML/year | I5: ML/year | J5: kL/day | K5: ML/year | L5: % | M5: Acceptable | O5: ML/yr | P5: % | Q5: CoCf | R5: OK >5?
B6: Total or average | D6: =AVERAGE(D8:D27) ->  | E6: =AVERAGE(E8:E27) ->  | F6: =AVERAGE(F8:F27) ->  | G6: =COUNTIF(G8:G27,"Efficient") -> 0 | H6: =SUMIF(H8:H27,">0") -> 0 | I6: =SUMIF(I8:I27,">0") -> 0 | J6: =SUMIF(J8:J27,">0") -> 0 | K6: =SUMIF(K8:K27,">0") -> 0 | L6: =SUMIF(L8:L27,">0")/COUNTIF(L8:L50,">0") ->  | M6: =COUNTIF(M8:M27,"Efficient") -> 0 | O6: =SUMIF(O8:O27,">0") -> 0 | P6: =SUMIF(P8:P27,">0")/COUNTIF(P8:P50,">0") ->  | Q6: =AVERAGEA(Q8:Q27) ->  | R6: =COUNTIF(R8:R27,"Efficient") -> 0
C7: E.g. CT Main | D7: 350 | E7: 1200 | F7: =E7/D7 -> 3.428571429 | G7: =IF(F7="","",IF(F7<5,"Inefficient","Efficient")) -> Inefficient | H7: 2 | I7: 10 | J7: =I7/365.25*1000 -> 27.37850787 | K7: =I7/F7-H7 -> 0.9166666667 | L7: =(I7/F7-H7)/I7 -> 0.09166666667 | M7: =IF(C7<>0,IF(L7<8%,"Efficient","Inefficient")) -> Inefficient | O7: =ABS(I7*(F7-Q7))/((F7)*(Q7-1)) -> 1.145833333 | P7: =ABS(O7/I7) -> 0.1145833333 | Q7: 5 | R7: =IF(C7>0,IF(Q7<5,"Inefficient","Efficient"),"") -> Efficient
B8: 1 | F8: =IF(ISBLANK(C8),"",E8/D8) ->  | G8: =IF(F8="","",IF(F8<5,"Inefficient","Efficient")) ->  | J8: 0 | K8: =IF(ISBLANK(C8),"",(I8/F8)-H8) ->  | L8: =IF(C8<>0,I8/F8-H8)/I8 ->  | M8: =IF(C8<>0,IF(L8<8%,"Efficient","Inefficient")) -> FALSE | O8: =ABS(I8*(F8-Q8))/((F8)*(Q8-1)) ->  | R8: =IF(C8>0,IF(Q8<5,"Inefficient","Efficient"),"") -> 
B9: 2 | F9: =IF(ISBLANK(C9),"",E9/D9) ->  | G9: =IF(F9="","",IF(F9<5,"Inefficient","Efficient")) ->  | J9: 0 | K9: =IF(ISBLANK(C9),"",(I9/F9)-H9) ->  | L9: =IF(C9<>0,I9/F9-H9)/I9 ->  | M9: =IF(C9<>0,IF(L9<8%,"Efficient","Inefficient")) -> FALSE | R9: =IF(C9>0,IF(Q9<5,"Inefficient","Efficient"),"") -> 
B10: 3 | F10: =IF(ISBLANK(C10),"",E10/D10) ->  | J10: 0 | K10: =IF(ISBLANK(C10),"",(I10/F10)-H10) ->  | L10: =IF(C10<>0,I10/F10-H10)/I10 ->  | M10: =IF(C10<>0,IF(L10<8%,"Efficient","Inefficient")) -> FALSE | R10: =IF(C10>0,IF(Q10<5,"Inefficient","Efficient"),"") -> 
B11: 4 | J11: 0 | K11: =IF(ISBLANK(C11),"",(I11/F11)-H11) ->  | M11: FALSE
B12: 5 | J12: 0 | M12: FALSE
B13: 6 | J13: 0 | M13: FALSE
B14: 7 | J14: 0 | M14: FALSE
B15: 8 | J15: 0 | M15: FALSE
B16: 9 | J16: 0 | M16: FALSE
B17: 10 | J17: 0 | M17: FALSE
B18: 11 | J18: 0 | M18: FALSE
B19: 12 | J19: 0 | M19: FALSE
B20: 13 | J20: 0 | M20: FALSE
B21: 14 | J21: 0 | M21: FALSE
B22: 15 | J22: 0 | M22: FALSE
B23: 16 | J23: 0 | M23: FALSE
B24: 17 | J24: 0 | M24: FALSE
B25: 18 | J25: 0 | M25: FALSE
B26: 19 | J26: 0 | M26: FALSE
B27: 20 | F27: =IF(ISBLANK(C27),"",E27/D27) ->  | J27: 0 | M27: FALSE | O27: =ABS(I27*(F27-Q27))/((F27)*(Q27-1)) ->  | P27: =ABS(O27/I27) ->  | R27: =IF(C27>0,IF(Q27<5,"Inefficient","Efficient"),"") -> 

Sheet 6 End Use Inventory
B2: 6. End Use Inventory - Current water use breakdown
C4: Baseline year | D4: ='1 Water Use Summary'!C4 -> 0
C5: Baseline consumption (ML/year) | D5: ='1 Water Use Summary'!C5 -> 0
C6: End use model consumption (ML/year) | D6: =G10 -> 0
C7: Volumetric balance ML/year | D7: =(D5-D6) -> 0 | E7: The balance is the difference between the baseline consumption and the end use model consumption
C8: % difference | D8: =D7/D5 ->  | G8: Total (ML/year) | H8: % | I8: Sub-meter recommended? | J8: General condition | K8: Comments (e.g. assumptions, reference to supporting calculations, sub-meter data etc.)
C10: Location / room name | D10: Type of end use | E10: Details of end use | G10: =SUM(G12:G500) -> 0
C11: E.g. Bathroom - Floor 1 | D11: Toilets | E11: Single flush toilets on first floor | G11: =100*2.5*11/1000*(365/52*2)/365 -> 0.1057692308 | K11: 100 people at 2.5 uses per day at 11L/flush, 5 days per week
C12: Totals for each end use are automatically transferred from modules 5-1A and 5-1B | D12: Taps | E12: All taps | G12: ='5-1A Taps & Showers'!R7 -> 0 | H12: =IF(G12>0,G12/$G$10,0) -> 0 | I12: =IF(($H12>=0.3),"Y","N") -> N
D13: Showers | E13: All showers | G13: ='5-1A Taps & Showers'!R8 -> 0 | H13: =IF(G13>0,G13/$G$10,0) -> 0 | I13: =IF(($H13>=0.3),"Y","N") -> N
D14: Toilets | E14: All toilets | G14: ='5-1B Toilets & Urinals'!Y6 -> 0 | H14: =IF(G14>0,G14/$G$10,0) -> 0 | I14: =IF(($H14>=0.3),"Y","N") -> N
D15: Urinals - single stall | E15: All single urinals (stalls) | G15: ='5-1B Toilets & Urinals'!Y7 -> 0 | H15: =IF(G15>0,G15/$G$10,0) -> 0 | I15: =IF(($H15>=0.3),"Y","N") -> N
D16: Urinals - trough | E16: All trough urinals | G16: ='5-1B Toilets & Urinals'!Y8 -> 0 | H16: =IF(G16>0,G16/$G$10,0) -> 0 | I16: =IF(($H16>=0.3),"Y","N") -> N
C17: Add any cooling towers, processes and other end uses by using drop down menu in end use column - use 4 End Use Definitions to create new End Use Categories if required
H18: =IF(G18>0,G18/$G$10,0) -> 0 | I18: =IF(($H18>=0.3),"Y","N") -> N
H19: =IF(G19>0,G19/$G$10,0) -> 0 | I19: N
H20: =IF(G20>0,G20/$G$10,0) -> 0 | I20: N
H21: =IF(G21>0,G21/$G$10,0) -> 0 | I21: N
H22: 0 | I22: N
H23: 0 | I23: N
H24: 0 | I24: N
H25: 0 | I25: N
H26: 0 | I26: N
H27: 0 | I27: N
H28: 0 | I28: N
H29: 0 | I29: N
H30: 0 | I30: N
H31: 0 | I31: N
H32: 0 | I32: N
H33: 0 | I33: N
H34: 0 | I34: N
H35: 0 | I35: N
H36: 0 | I36: N
H37: 0 | I37: N
H38: 0 | I38: N
H39: 0 | I39: N
H40: 0 | I40: N
H41: 0 | I41: N
H42: 0 | I42: N
H43: 0 | I43: N
H44: 0 | I44: N
H45: 0 | I45: N
H46: 0 | I46: N
H47: 0 | I47: N
H48: 0 | I48: N
H49: 0 | I49: N
H50: 0 | I50: N
H51: 0 | I51: N
H52: 0 | I52: N
H53: 0 | I53: N
H54: 0 | I54: N
H55: 0 | I55: N
H56: 0 | I56: N
H57: 0 | I57: N
H58: 0 | I58: N
H59: 0 | I59: N
H60: 0 | I60: N
H61: 0 | I61: N
H62: 0 | I62: N
H63: 0 | I63: N
H64: 0 | I64: N
H65: 0 | I65: N
H66: 0 | I66: N
H67: 0 | I67: N
H68: 0 | I68: N
H69: 0 | I69: N
H70: 0 | I70: N
H71: 0 | I71: N
H72: 0 | I72: N
H73: 0 | I73: N
H74: 0 | I74: N
H75: 0 | I75: N
H76: 0 | I76: N
H77: 0 | I77: N
H78: 0 | I78: N
H79: 0 | I79: N
H80: 0 | I80: N
H81: 0 | I81: N
H82: 0 | I82: =IF(($H82>=0.3),"Y","N") -> N
H83: 0 | I83: N
H84: 0 | I84: N
H85: =IF(G85>0,G85/$G$10,0) -> 0 | I85: N
H86: 0 | I86: N
H87: 0 | I87: N
H88: 0 | I88: N
H89: 0 | I89: N
H90: 0 | I90: N
H91: 0 | I91: N
H92: 0 | I92: N
H93: 0 | I93: N
H94: 0 | I94: N
H95: 0 | I95: N
H96: 0 | I96: N
H97: 0 | I97: N
H98: 0 | I98: N
H99: 0 | I99: N
H100: 0 | I100: N
H101: 0 | I101: N
H102: 0 | I102: N
H103: 0 | I103: N
H104: 0 | I104: N
H105: 0 | I105: N
H106: 0 | I106: N
H107: 0 | I107: N
H108: 0 | I108: N
H109: 0 | I109: N
H110: 0 | I110: N
H111: 0 | I111: N
H112: 0 | I112: N
H113: 0 | I113: N
H114: 0 | I114: N
H115: 0 | I115: N
H116: 0 | I116: N
H117: 0 | I117: N
H118: 0 | I118: N
H119: 0 | I119: N
H120: 0 | I120: N
H121: 0 | I121: N
H122: 0 | I122: N
H123: 0 | I123: N
H124: 0 | I124: N
H125: 0 | I125: N
H126: 0 | I126: N
H127: 0 | I127: N
H128: 0 | I128: N
H129: 0 | I129: N
H130: 0 | I130: N
H131: 0 | I131: N
H132: 0 | I132: N
H133: 0 | I133: N
H134: 0 | I134: N
H135: 0 | I135: N
H136: 0 | I136: N
H137: 0 | I137: N
H138: 0 | I138: N
H139: 0 | I139: N
H140: 0 | I140: N
H141: 0 | I141: N
H142: 0 | I142: N
H143: 0 | I143: N
H144: 0 | I144: N
H145: 0 | I145: N
H146: 0 | I146: =IF(($H146>=0.3),"Y","N") -> N
H147: 0 | I147: N
H148: 0 | I148: N
H149: =IF(G149>0,G149/$G$10,0) -> 0 | I149: N
H150: 0 | I150: N
H151: 0 | I151: N
H152: 0 | I152: N
H153: 0 | I153: N
H154: 0 | I154: N
H155: 0 | I155: N
H156: 0 | I156: N
H157: 0 | I157: N
H158: 0 | I158: N
H159: 0 | I159: N
H160: 0 | I160: N
H161: 0 | I161: N
H162: 0 | I162: N
H163: 0 | I163: N
H164: 0 | I164: N
H165: 0 | I165: N
H166: 0 | I166: N
H167: 0 | I167: N
H168: 0 | I168: N
H169: 0 | I169: N
H170: 0 | I170: N
H171: 0 | I171: N
H172: 0 | I172: N
H173: 0 | I173: N
H174: 0 | I174: N
H175: 0 | I175: N
H176: 0 | I176: N
H177: 0 | I177: N
H178: 0 | I178: N
H179: 0 | I179: N
H180: 0 | I180: N
H181: 0 | I181: N
H182: 0 | I182: N
H183: 0 | I183: N
H184: 0 | I184: N
H185: 0 | I185: N
H186: 0 | I186: N
H187: 0 | I187: N
H188: 0 | I188: N
H189: 0 | I189: N
H190: 0 | I190: N
H191: 0 | I191: N
H192: 0 | I192: N
H193: 0 | I193: N
H194: 0 | I194: N
H195: 0 | I195: N
H196: 0 | I196: N
H197: 0 | I197: N
H198: 0 | I198: N
H199: 0 | I199: N
H200: 0 | I200: N
H201: 0 | I201: N
H202: 0 | I202: N
H203: 0 | I203: N
... 297 more rows

Sheet 7 End Use Totals
C3: 7. End Use Totals - Breakdown
C4: Press this button to see all possible end uses:
D5: # | E5: End Use | F5: End use total (ML/year) | G5: Percentage of total (%) | H5: Proposed end use saving (%)
E6: Total | F6: ='6 End Use Inventory'!D5 -> 0 | H6: =IF(COUNTIF(H7:H31,">1")>0,"Check savings!",) -> 0 | I6: EndUse | J6: Imp
D7: 1 | E7: Toilets | F7: ='6 End Use Inventory'!$G$14 -> 0 | G7: =F7/$F$6 ->  | H7: =L7/F7 ->  | I7: =E7 -> Toilets | J7: Yes | K7: =VLOOKUP(I7,'9-3 Action Plan'!$E$11:$G$60,3) ->  | L7: =K7 -> 
D8: 2 | E8: Taps | F8: ='6 End Use Inventory'!$G$12 -> 0 | G8: =F8/$F$6 ->  | H8: =L8/F8 ->  | I8: =E8 -> Taps | J8: Yes | K8: =VLOOKUP(I8,'9-3 Action Plan'!$E$11:$G$60,3) ->  | L8: =IF(I8<>0,K8-K7,0) -> 
D9: 3 | E9: Showers | F9: ='6 End Use Inventory'!$G$13 -> 0 | I9: Showers | J9: Yes | K9: =VLOOKUP(I9,'9-3 Action Plan'!$E$11:$G$60,3) ->  | L9: =IF(I9<>0,K9-K8,0) -> 
D10: 4 | E10: Urinals - single stall | F10: ='6 End Use Inventory'!$G$15 -> 0 | I10: Urinals - single stall | J10: Yes | K10: =VLOOKUP(I10,'9-3 Action Plan'!$E$11:$G$60,3) -> 
D11: 5 | E11: Urinals - trough | F11: ='6 End Use Inventory'!$G$16 -> 0 | I11: Urinals - trough | J11: Yes | K11: =VLOOKUP(I11,'9-3 Action Plan'!$E$11:$G$60,3) -> 
D12: 6 | E12: Unaccounted | F12: ='6 End Use Inventory'!$D$7 -> 0 | G12: =F12/$F$6 ->  | I12: Unaccounted
D13: 7 | E13: ='4 End Use Definitions'!C12 -> Leakage | F13: =sumif1(E13,'6 End Use Inventory'!$D$12:$D$500,'6 End Use Inventory'!$G$12:$G$500) ->  | I13: Leakage | J13: Yes | K13: =VLOOKUP(I13,'9-3 Action Plan'!$E$11:$G$60,3) ->  | L13: =IF(I13<>0,K13-K11,0) -> 
D14: 8 | E14: ='4 End Use Definitions'!C13 -> Cooling | F14: =sumif1(E14,'6 End Use Inventory'!$D$12:$D$500,'6 End Use Inventory'!$G$12:$G$500) ->  | I14: Cooling | J14: Yes | K14: =VLOOKUP(I14,'9-3 Action Plan'!$E$11:$G$60,3) -> 
D15: 9 | E15: ='4 End Use Definitions'!C14 -> Fire Testing | F15: =sumif1(E15,'6 End Use Inventory'!$D$12:$D$500,'6 End Use Inventory'!$G$12:$G$500) ->  | I15: Fire Testing | J15: Yes | K15: =VLOOKUP(I15,'9-3 Action Plan'!$E$11:$G$60,3) -> 
D16: 10 | E16: ='4 End Use Definitions'!C15 -> 0 | F16: =sumif1(E16,'6 End Use Inventory'!$D$12:$D$500,'6 End Use Inventory'!$G$12:$G$500) ->  | I16: 0 | J16: Yes | K16: =VLOOKUP(I16,'9-3 Action Plan'!$E$11:$G$60,3) -> 0 | L16: 0
D17: 11 | E17: ='4 End Use Definitions'!C16 -> 0 | F17: =sumif1(E17,'6 End Use Inventory'!$D$12:$D$500,'6 End Use Inventory'!$G$12:$G$500) ->  | I17: 0 | J17: Yes | K17: =VLOOKUP(I17,'9-3 Action Plan'!$E$11:$G$60,3) -> 0 | L17: 0
D18: 12 | E18: ='4 End Use Definitions'!C17 -> 0 | F18: =sumif1(E18,'6 End Use Inventory'!$D$12:$D$500,'6 End Use Inventory'!$G$12:$G$500) ->  | I18: 0 | J18: Yes | K18: =VLOOKUP(I18,'9-3 Action Plan'!$E$11:$G$60,3) -> 0 | L18: 0
D19: 13 | E19: ='4 End Use Definitions'!C18 -> 0 | F19: =sumif1(E19,'6 End Use Inventory'!$D$12:$D$500,'6 End Use Inventory'!$G$12:$G$500) ->  | I19: 0 | J19: Yes | K19: =VLOOKUP(I19,'9-3 Action Plan'!$E$11:$G$60,3) -> 0 | L19: 0
D20: 14 | E20: ='4 End Use Definitions'!C19 -> 0 | F20: =sumif1(E20,'6 End Use Inventory'!$D$12:$D$500,'6 End Use Inventory'!$G$12:$G$500) ->  | I20: 0 | J20: Yes | K20: =VLOOKUP(I20,'9-3 Action Plan'!$E$11:$G$60,3) -> 0 | L20: 0
D21: 15 | E21: ='4 End Use Definitions'!C20 -> 0 | F21: =sumif1(E21,'6 End Use Inventory'!$D$12:$D$500,'6 End Use Inventory'!$G$12:$G$500) ->  | I21: 0 | J21: Yes | K21: =VLOOKUP(I21,'9-3 Action Plan'!$E$11:$G$60,3) -> 0 | L21: 0
D22: 16 | E22: ='4 End Use Definitions'!C21 -> 0 | F22: =sumif1(E22,'6 End Use Inventory'!$D$12:$D$500,'6 End Use Inventory'!$G$12:$G$500) ->  | I22: 0 | J22: Yes | K22: =VLOOKUP(I22,'9-3 Action Plan'!$E$11:$G$60,3) -> 0 | L22: 0
D23: 17 | E23: ='4 End Use Definitions'!C22 -> 0 | F23: =sumif1(E23,'6 End Use Inventory'!$D$12:$D$500,'6 End Use Inventory'!$G$12:$G$500) ->  | I23: 0 | J23: Yes | K23: =VLOOKUP(I23,'9-3 Action Plan'!$E$11:$G$60,3) -> 0 | L23: 0
D24: 18 | E24: ='4 End Use Definitions'!C23 -> 0 | F24: =sumif1(E24,'6 End Use Inventory'!$D$12:$D$500,'6 End Use Inventory'!$G$12:$G$500) ->  | I24: 0 | J24: Yes | K24: =VLOOKUP(I24,'9-3 Action Plan'!$E$11:$G$60,3) -> 0 | L24: 0
D25: 19 | E25: ='4 End Use Definitions'!C24 -> 0 | F25: =sumif1(E25,'6 End Use Inventory'!$D$12:$D$500,'6 End Use Inventory'!$G$12:$G$500) ->  | I25: 0 | J25: Yes | K25: =VLOOKUP(I25,'9-3 Action Plan'!$E$11:$G$60,3) -> 0 | L25: 0
D26: 20 | E26: ='4 End Use Definitions'!C25 -> 0 | F26: =sumif1(E26,'6 End Use Inventory'!$D$12:$D$500,'6 End Use Inventory'!$G$12:$G$500) ->  | I26: 0 | J26: Yes | K26: =VLOOKUP(I26,'9-3 Action Plan'!$E$11:$G$60,3) -> 0 | L26: 0
D27: 21 | E27: ='4 End Use Definitions'!C26 -> 0 | F27: =sumif1(E27,'6 End Use Inventory'!$D$12:$D$500,'6 End Use Inventory'!$G$12:$G$500) ->  | I27: 0 | J27: Yes | K27: =VLOOKUP(I27,'9-3 Action Plan'!$E$11:$G$60,3) -> 0 | L27: 0
D28: 22 | E28: ='4 End Use Definitions'!C27 -> 0 | F28: =sumif1(E28,'6 End Use Inventory'!$D$12:$D$500,'6 End Use Inventory'!$G$12:$G$500) ->  | I28: 0 | J28: Yes | K28: =VLOOKUP(I28,'9-3 Action Plan'!$E$11:$G$60,3) -> 0 | L28: 0
D29: 23 | E29: ='4 End Use Definitions'!C28 -> 0 | F29: =sumif1(E29,'6 End Use Inventory'!$D$12:$D$500,'6 End Use Inventory'!$G$12:$G$500) ->  | I29: 0 | J29: Yes | K29: =VLOOKUP(I29,'9-3 Action Plan'!$E$11:$G$60,3) -> 0 | L29: 0
D30: 24 | E30: ='4 End Use Definitions'!C29 -> 0 | F30: =sumif1(E30,'6 End Use Inventory'!$D$12:$D$500,'6 End Use Inventory'!$G$12:$G$500) ->  | I30: 0 | J30: Yes | K30: =VLOOKUP(I30,'9-3 Action Plan'!$E$11:$G$60,3) -> 0 | L30: 0
D31: 25 | E31: ='4 End Use Definitions'!C30 -> 0 | F31: =sumif1(E31,'6 End Use Inventory'!$D$12:$D$500,'6 End Use Inventory'!$G$12:$G$500) ->  | I31: 0 | J31: Yes | K31: =VLOOKUP(I31,'9-3 Action Plan'!$E$11:$G$60,3) -> 0 | L31: 0

Sheet 9-1 Water Saving Measures
B2: 9-1 Water Saving Measures
B4: Use the WEMP Water Saving Measures checklist to assist you in developing water saving ideas
C7: # | D7: End use category | E7: Water saving measures (list individual measures or add/attach detailed work sheets) | F7: Saving achieved to date (ML) | G7: Potential project savings (ML) | N7: Comments and risks associated with saving/water efficiency measure
C8: # | D8: End Use Category | F8: Use this column to quantify any savings that were achieved prior to the baseline year | H8: =VLOOKUP(G8,$G$68:$J$90,2,FALSE) ->  | I8: =VLOOKUP(H8,$G$68:$J$90,2,FALSE) ->  | J8: =VLOOKUP(I8,$G$68:$J$90,2,FALSE) ->  | K8: Project water savings (ML/year) | L8: Current water end use (ML/year) | M8: Potential water saving (%)
D9: EndUse | E9: WaterSave | G9: Q108 | H9: Q208 | I9: Q308 | J9: Q408 | K9: TotalSavings
C10: 1 | K10: =SUM(G10:J10) -> 0 | L10: =INDEX('7 End Use Totals'!$F$7:$F$34,MATCH(D10,'7 End Use Totals'!$E$7:$E$33,0)) ->  | M10: =K10/L10 -> 
C11: 2 | K11: =SUM(G11:J11) -> 0 | L11: =INDEX('7 End Use Totals'!$F$7:$F$34,MATCH(D11,'7 End Use Totals'!$E$7:$E$33,0)) ->  | M11: =K11/L11 -> 
C12: 3 | K12: 0 | L12: =INDEX('7 End Use Totals'!$F$7:$F$34,MATCH(D12,'7 End Use Totals'!$E$7:$E$33,0)) -> 
C13: 4 | K13: 0 | L13: =INDEX('7 End Use Totals'!$F$7:$F$34,MATCH(D13,'7 End Use Totals'!$E$7:$E$33,0)) -> 
C14: 5 | K14: 0 | L14: =INDEX('7 End Use Totals'!$F$7:$F$34,MATCH(D14,'7 End Use Totals'!$E$7:$E$33,0)) -> 
C15: 6 | K15: 0 | L15: =INDEX('7 End Use Totals'!$F$7:$F$34,MATCH(D15,'7 End Use Totals'!$E$7:$E$33,0)) -> 
C16: 7 | K16: 0 | L16: =INDEX('7 End Use Totals'!$F$7:$F$34,MATCH(D16,'7 End Use Totals'!$E$7:$E$33,0)) -> 
C17: 8 | K17: 0 | L17: =INDEX('7 End Use Totals'!$F$7:$F$34,MATCH(D17,'7 End Use Totals'!$E$7:$E$33,0)) -> 
C18: 9 | K18: 0 | L18: =INDEX('7 End Use Totals'!$F$7:$F$34,MATCH(D18,'7 End Use Totals'!$E$7:$E$33,0)) -> 
C19: 10 | K19: 0 | L19: =INDEX('7 End Use Totals'!$F$7:$F$34,MATCH(D19,'7 End Use Totals'!$E$7:$E$33,0)) -> 
C20: 11 | K20: 0 | L20: =INDEX('7 End Use Totals'!$F$7:$F$34,MATCH(D20,'7 End Use Totals'!$E$7:$E$33,0)) -> 
C21: 12 | K21: 0 | L21: =INDEX('7 End Use Totals'!$F$7:$F$34,MATCH(D21,'7 End Use Totals'!$E$7:$E$33,0)) -> 
C22: 13 | K22: 0 | L22: =INDEX('7 End Use Totals'!$F$7:$F$34,MATCH(D22,'7 End Use Totals'!$E$7:$E$33,0)) -> 
C23: 14 | K23: 0 | L23: =INDEX('7 End Use Totals'!$F$7:$F$34,MATCH(D23,'7 End Use Totals'!$E$7:$E$33,0)) -> 
C24: 15 | K24: 0 | L24: =INDEX('7 End Use Totals'!$F$7:$F$34,MATCH(D24,'7 End Use Totals'!$E$7:$E$33,0)) -> 
C25: 16 | K25: 0 | L25: =INDEX('7 End Use Totals'!$F$7:$F$34,MATCH(D25,'7 End Use Totals'!$E$7:$E$33,0)) -> 
C26: 17 | K26: 0 | L26: =INDEX('7 End Use Totals'!$F$7:$F$34,MATCH(D26,'7 End Use Totals'!$E$7:$E$33,0)) -> 
C27: 18 | K27: 0 | L27: =INDEX('7 End Use Totals'!$F$7:$F$34,MATCH(D27,'7 End Use Totals'!$E$7:$E$33,0)) -> 
C28: 19 | K28: 0 | L28: =INDEX('7 End Use Totals'!$F$7:$F$34,MATCH(D28,'7 End Use Totals'!$E$7:$E$33,0)) -> 
C29: 20 | K29: 0 | L29: =INDEX('7 End Use Totals'!$F$7:$F$34,MATCH(D29,'7 End Use Totals'!$E$7:$E$33,0)) -> 
C30: 21 | K30: 0 | L30: =INDEX('7 End Use Totals'!$F$7:$F$34,MATCH(D30,'7 End Use Totals'!$E$7:$E$33,0)) -> 
C31: 22 | K31: 0 | L31: =INDEX('7 End Use Totals'!$F$7:$F$34,MATCH(D31,'7 End Use Totals'!$E$7:$E$33,0)) -> 
C32: 23 | K32: 0 | L32: =INDEX('7 End Use Totals'!$F$7:$F$34,MATCH(D32,'7 End Use Totals'!$E$7:$E$33,0)) -> 
C33: 24 | K33: 0 | L33: =INDEX('7 End Use Totals'!$F$7:$F$34,MATCH(D33,'7 End Use Totals'!$E$7:$E$33,0)) -> 
C34: 25 | K34: 0 | L34: =INDEX('7 End Use Totals'!$F$7:$F$34,MATCH(D34,'7 End Use Totals'!$E$7:$E$33,0)) -> 
C35: 26 | K35: 0 | L35: =INDEX('7 End Use Totals'!$F$7:$F$34,MATCH(D35,'7 End Use Totals'!$E$7:$E$33,0)) -> 
C36: 27 | K36: 0 | L36: =INDEX('7 End Use Totals'!$F$7:$F$34,MATCH(D36,'7 End Use Totals'!$E$7:$E$33,0)) -> 
C37: 28 | K37: 0 | L37: =INDEX('7 End Use Totals'!$F$7:$F$34,MATCH(D37,'7 End Use Totals'!$E$7:$E$33,0)) -> 
C38: 29 | K38: 0 | L38: =INDEX('7 End Use Totals'!$F$7:$F$34,MATCH(D38,'7 End Use Totals'!$E$7:$E$33,0)) -> 
C39: 30 | K39: 0 | L39: =INDEX('7 End Use Totals'!$F$7:$F$34,MATCH(D39,'7 End Use Totals'!$E$7:$E$33,0)) -> 
C40: 31 | K40: 0 | L40: =INDEX('7 End Use Totals'!$F$7:$F$34,MATCH(D40,'7 End Use Totals'!$E$7:$E$33,0)) -> 
C41: 32 | K41: 0 | L41: =INDEX('7 End Use Totals'!$F$7:$F$34,MATCH(D41,'7 End Use Totals'!$E$7:$E$33,0)) -> 
C42: 33 | K42: =SUM(G42:J42) -> 0 | L42: =INDEX('7 End Use Totals'!$F$7:$F$34,MATCH(D42,'7 End Use Totals'!$E$7:$E$33,0)) -> 
C43: 34 | K43: 0 | L43: =INDEX('7 End Use Totals'!$F$7:$F$34,MATCH(D43,'7 End Use Totals'!$E$7:$E$33,0)) -> 
C44: 35 | K44: 0 | L44: =INDEX('7 End Use Totals'!$F$7:$F$34,MATCH(D44,'7 End Use Totals'!$E$7:$E$33,0)) -> 
C45: 36 | K45: 0 | L45: =INDEX('7 End Use Totals'!$F$7:$F$34,MATCH(D45,'7 End Use Totals'!$E$7:$E$33,0)) -> 
C46: 37 | K46: 0 | L46: =INDEX('7 End Use Totals'!$F$7:$F$34,MATCH(D46,'7 End Use Totals'!$E$7:$E$33,0)) -> 
C47: 38 | K47: 0 | L47: =INDEX('7 End Use Totals'!$F$7:$F$34,MATCH(D47,'7 End Use Totals'!$E$7:$E$33,0)) -> 
C48: 39 | K48: 0 | L48: =INDEX('7 End Use Totals'!$F$7:$F$34,MATCH(D48,'7 End Use Totals'!$E$7:$E$33,0)) -> 
C49: 40 | K49: 0 | L49: =INDEX('7 End Use Totals'!$F$7:$F$34,MATCH(D49,'7 End Use Totals'!$E$7:$E$33,0)) -> 
C50: 41 | K50: 0 | L50: =INDEX('7 End Use Totals'!$F$7:$F$34,MATCH(D50,'7 End Use Totals'!$E$7:$E$33,0)) -> 
C51: 42 | K51: 0 | L51: =INDEX('7 End Use Totals'!$F$7:$F$34,MATCH(D51,'7 End Use Totals'!$E$7:$E$33,0)) -> 
C52: 43 | K52: 0 | L52: =INDEX('7 End Use Totals'!$F$7:$F$34,MATCH(D52,'7 End Use Totals'!$E$7:$E$33,0)) -> 
C53: 44 | K53: 0 | L53: =INDEX('7 End Use Totals'!$F$7:$F$34,MATCH(D53,'7 End Use Totals'!$E$7:$E$33,0)) -> 
C54: 45 | K54: 0 | L54: =INDEX('7 End Use Totals'!$F$7:$F$34,MATCH(D54,'7 End Use Totals'!$E$7:$E$33,0)) -> 
C55: 46 | K55: 0 | L55: =INDEX('7 End Use Totals'!$F$7:$F$34,MATCH(D55,'7 End Use Totals'!$E$7:$E$33,0)) -> 
C56: 47 | K56: 0 | L56: =INDEX('7 End Use Totals'!$F$7:$F$34,MATCH(D56,'7 End Use Totals'!$E$7:$E$33,0)) -> 
C57: 48 | K57: 0 | L57: =INDEX('7 End Use Totals'!$F$7:$F$34,MATCH(D57,'7 End Use Totals'!$E$7:$E$33,0)) -> 
C58: 49 | K58: 0 | L58: =INDEX('7 End Use Totals'!$F$7:$F$34,MATCH(D58,'7 End Use Totals'!$E$7:$E$33,0)) -> 
C59: 50 | K59: 0 | L59: =INDEX('7 End Use Totals'!$F$7:$F$34,MATCH(D59,'7 End Use Totals'!$E$7:$E$33,0)) -> 
F67: End uses
F68: =('4 End Use Definitions'!C6) -> Toilets | G68: Q1 (Jan09 - Mar09) | H68: Q2 (Apr09 - Jun09)
F69: =('4 End Use Definitions'!C7) -> Taps | G69: Q2 (Apr09 - Jun09) | H69: Q3 (Jul09 - Sep09)
F70: =('4 End Use Definitions'!C8) -> Showers | G70: Q3 (Jul09 - Sep09) | H70: Q4 (Oct09 - Dec09)
F71: =('4 End Use Definitions'!C9) -> Urinals - single stall | G71: Q4 (Oct09 - Dec09) | H71: Q1 (Jan10 - Mar10)
F72: =('4 End Use Definitions'!C10) -> Urinals - trough | G72: Q1 (Jan10 - Mar10) | H72: Q2 (Apr10 - Jun10)
F73: =('4 End Use Definitions'!C11) -> Unaccounted | G73: Q2 (Apr10 - Jun10) | H73: Q3 (Jul10 - Sep10)
F74: =('4 End Use Definitions'!C12) -> Leakage | G74: Q3 (Jul10 - Sep10) | H74: Q4 (Oct10 - Dec10)
F75: =('4 End Use Definitions'!C13) -> Cooling | G75: Q4 (Oct10 - Dec10) | H75: Q1 (Jan11 - Mar11)
F76: =('4 End Use Definitions'!C14) -> Fire Testing | G76: Q1 (Jan11 - Mar11) | H76: Q2 (Apr11 - Jun11)
F77: =('4 End Use Definitions'!C15) -> 0 | G77: Q2 (Apr11 - Jun11) | H77: Q3 (Jul11 - Sep11)
F78: =('4 End Use Definitions'!C16) -> 0 | G78: Q3 (Jul11 - Sep11) | H78: Q4 (Oct11 - Dec11)
F79: =('4 End Use Definitions'!C17) -> 0 | G79: Q4 (Oct11 - Dec11)
F80: =('4 End Use Definitions'!C18) -> 0 | G80: Q1 (Jan09 - Mar09)
F81: =('4 End Use Definitions'!C19) -> 0 | G81: Q2 (Apr09 - Jun09)
F82: =('4 End Use Definitions'!C20) -> 0 | G82: Q3 (Jul09 - Sep09)
F83: =('4 End Use Definitions'!C21) -> 0 | G83: Q4 (Oct09 - Dec09)
F84: =('4 End Use Definitions'!C22) -> 0 | G84: Q1 (Jan09 - Mar09)
F85: =('4 End Use Definitions'!C23) -> 0 | G85: Q2 (Apr09 - Jun09)
F86: =('4 End Use Definitions'!C24) -> 0 | G86: Q3 (Jul09 - Sep09)
F87: =('4 End Use Definitions'!C25) -> 0 | G87: Q4 (Oct09 - Dec09)
F88: =('4 End Use Definitions'!C26) -> 0 | G88: Q1 (Jan09 - Mar09)
F89: =('4 End Use Definitions'!C27) -> 0 | G89: Q2 (Apr09 - Jun09)
F90: =('4 End Use Definitions'!C28) -> 0 | G90: Q3 (Jul09 - Sep09)
F91: =('4 End Use Definitions'!C29) -> 0

Sheet 9-2 Economic Assessment
C2: 9-2 Economic Assessment
C4: Variable water cost per kL saved ($/kL)
C5: Variable trade waste cost per kL saved ($/kL)
C6: Total water cost per kL saved ($/kL) | E6: =SUM(E4:E5) -> 0
C8: # | D8: End use category | E8: Water saving measures | F8: Total proposed project water savings (ML/year) | G8: Capital costs ($) | H8: Installation or other implementation costs ($) | I8: Total cost of works ($) | J8: Water supply cost savings ($/yr) | K8: Sewer & tradewaste savings ($/yr) | L8: Maintenance costs ($pa) | M8: Energy Savings ($/year) | N8: Total Savings ($/yr) | O8: Payback period (years) | P8: Installed cost/unit ($/kL saved) | Q8: Comments
D9: EndUse | E9: WaterSave | F9: TotalSavings
C10: 1 | D10: ='9-1 Water Saving Measures'!D10 -> 0 | E10: ='9-1 Water Saving Measures'!E10 -> 0 | F10: ='9-1 Water Saving Measures'!K10 -> 0 | I10: =H10+G10 -> 0 | N10: =M10-L10+J10+K10 -> 0 | O10: =I10/N10 ->  | P10: =I10/F10/1000 -> 
C11: 2 | D11: ='9-1 Water Saving Measures'!D11 -> 0 | E11: ='9-1 Water Saving Measures'!E11 -> 0 | F11: ='9-1 Water Saving Measures'!K11 -> 0 | I11: 0 | N11: 0 | O11: =I11/N11 -> 
C12: 3 | D12: ='9-1 Water Saving Measures'!D12 -> 0 | E12: ='9-1 Water Saving Measures'!E12 -> 0 | F12: ='9-1 Water Saving Measures'!K12 -> 0 | I12: 0 | N12: 0
C13: 4 | D13: ='9-1 Water Saving Measures'!D13 -> 0 | E13: ='9-1 Water Saving Measures'!E13 -> 0 | F13: ='9-1 Water Saving Measures'!K13 -> 0 | I13: 0 | N13: 0
C14: 5 | D14: ='9-1 Water Saving Measures'!D14 -> 0 | E14: ='9-1 Water Saving Measures'!E14 -> 0 | F14: ='9-1 Water Saving Measures'!K14 -> 0 | I14: 0 | N14: 0 | P14: =I14/F14/1000 -> 
C15: 6 | D15: ='9-1 Water Saving Measures'!D15 -> 0 | E15: ='9-1 Water Saving Measures'!E15 -> 0 | F15: ='9-1 Water Saving Measures'!K15 -> 0 | I15: 0 | N15: 0
C16: 7 | D16: ='9-1 Water Saving Measures'!D16 -> 0 | E16: ='9-1 Water Saving Measures'!E16 -> 0 | F16: ='9-1 Water Saving Measures'!K16 -> 0 | I16: 0 | N16: 0
C17: 8 | D17: ='9-1 Water Saving Measures'!D17 -> 0 | E17: ='9-1 Water Saving Measures'!E17 -> 0 | F17: ='9-1 Water Saving Measures'!K17 -> 0 | I17: 0 | N17: 0
C18: 9 | D18: ='9-1 Water Saving Measures'!D18 -> 0 | E18: ='9-1 Water Saving Measures'!E18 -> 0 | F18: ='9-1 Water Saving Measures'!K18 -> 0 | I18: 0 | N18: 0
C19: 10 | D19: ='9-1 Water Saving Measures'!D19 -> 0 | E19: ='9-1 Water Saving Measures'!E19 -> 0 | F19: ='9-1 Water Saving Measures'!K19 -> 0 | I19: 0 | N19: 0
C20: 11 | D20: ='9-1 Water Saving Measures'!D20 -> 0 | E20: ='9-1 Water Saving Measures'!E20 -> 0 | F20: ='9-1 Water Saving Measures'!K20 -> 0 | I20: 0 | N20: 0
C21: 12 | D21: ='9-1 Water Saving Measures'!D21 -> 0 | E21: ='9-1 Water Saving Measures'!E21 -> 0 | F21: ='9-1 Water Saving Measures'!K21 -> 0 | I21: 0 | N21: 0
C22: 13 | D22: ='9-1 Water Saving Measures'!D22 -> 0 | E22: ='9-1 Water Saving Measures'!E22 -> 0 | F22: ='9-1 Water Saving Measures'!K22 -> 0 | I22: 0 | N22: 0
C23: 14 | D23: ='9-1 Water Saving Measures'!D23 -> 0 | E23: ='9-1 Water Saving Measures'!E23 -> 0 | F23: ='9-1 Water Saving Measures'!K23 -> 0 | I23: 0 | N23: 0
C24: 15 | D24: ='9-1 Water Saving Measures'!D24 -> 0 | E24: ='9-1 Water Saving Measures'!E24 -> 0 | F24: ='9-1 Water Saving Measures'!K24 -> 0 | I24: 0 | N24: 0
C25: 16 | D25: ='9-1 Water Saving Measures'!D25 -> 0 | E25: ='9-1 Water Saving Measures'!E25 -> 0 | F25: ='9-1 Water Saving Measures'!K25 -> 0 | I25: 0 | N25: 0
C26: 17 | D26: ='9-1 Water Saving Measures'!D26 -> 0 | E26: ='9-1 Water Saving Measures'!E26 -> 0 | F26: ='9-1 Water Saving Measures'!K26 -> 0 | I26: 0 | N26: 0
C27: 18 | D27: ='9-1 Water Saving Measures'!D27 -> 0 | E27: ='9-1 Water Saving Measures'!E27 -> 0 | F27: ='9-1 Water Saving Measures'!K27 -> 0 | I27: 0 | N27: 0
C28: 19 | D28: ='9-1 Water Saving Measures'!D28 -> 0 | E28: ='9-1 Water Saving Measures'!E28 -> 0 | F28: ='9-1 Water Saving Measures'!K28 -> 0 | I28: 0 | N28: 0
C29: 20 | D29: ='9-1 Water Saving Measures'!D29 -> 0 | E29: ='9-1 Water Saving Measures'!E29 -> 0 | F29: ='9-1 Water Saving Measures'!K29 -> 0 | I29: 0 | N29: 0
C30: 21 | D30: ='9-1 Water Saving Measures'!D30 -> 0 | E30: ='9-1 Water Saving Measures'!E30 -> 0 | F30: ='9-1 Water Saving Measures'!K30 -> 0 | I30: 0 | N30: 0
C31: 22 | D31: ='9-1 Water Saving Measures'!D31 -> 0 | E31: ='9-1 Water Saving Measures'!E31 -> 0 | F31: ='9-1 Water Saving Measures'!K31 -> 0 | I31: 0 | N31: 0
C32: 23 | D32: ='9-1 Water Saving Measures'!D32 -> 0 | E32: ='9-1 Water Saving Measures'!E32 -> 0 | F32: ='9-1 Water Saving Measures'!K32 -> 0 | I32: 0 | N32: 0
C33: 24 | D33: ='9-1 Water Saving Measures'!D33 -> 0 | E33: ='9-1 Water Saving Measures'!E33 -> 0 | F33: ='9-1 Water Saving Measures'!K33 -> 0 | I33: 0 | N33: 0
C34: 25 | D34: ='9-1 Water Saving Measures'!D34 -> 0 | E34: ='9-1 Water Saving Measures'!E34 -> 0 | F34: ='9-1 Water Saving Measures'!K34 -> 0 | I34: 0 | N34: 0
C35: 26 | D35: ='9-1 Water Saving Measures'!D35 -> 0 | E35: ='9-1 Water Saving Measures'!E35 -> 0 | F35: ='9-1 Water Saving Measures'!K35 -> 0 | I35: 0 | N35: 0
C36: 27 | D36: ='9-1 Water Saving Measures'!D36 -> 0 | E36: ='9-1 Water Saving Measures'!E36 -> 0 | F36: ='9-1 Water Saving Measures'!K36 -> 0 | I36: 0 | N36: 0
C37: 28 | D37: ='9-1 Water Saving Measures'!D37 -> 0 | E37: ='9-1 Water Saving Measures'!E37 -> 0 | F37: ='9-1 Water Saving Measures'!K37 -> 0 | I37: 0 | N37: 0
C38: 29 | D38: ='9-1 Water Saving Measures'!D38 -> 0 | E38: ='9-1 Water Saving Measures'!E38 -> 0 | F38: ='9-1 Water Saving Measures'!K38 -> 0 | I38: 0 | N38: 0
C39: 30 | D39: ='9-1 Water Saving Measures'!D39 -> 0 | E39: ='9-1 Water Saving Measures'!E39 -> 0 | F39: ='9-1 Water Saving Measures'!K39 -> 0 | I39: 0 | N39: 0
C40: 31 | D40: ='9-1 Water Saving Measures'!D40 -> 0 | E40: ='9-1 Water Saving Measures'!E40 -> 0 | F40: ='9-1 Water Saving Measures'!K40 -> 0 | I40: 0 | N40: 0
C41: 32 | D41: ='9-1 Water Saving Measures'!D41 -> 0 | E41: ='9-1 Water Saving Measures'!E41 -> 0 | F41: ='9-1 Water Saving Measures'!K41 -> 0 | I41: 0 | N41: 0
C42: 33 | D42: ='9-1 Water Saving Measures'!D42 -> 0 | E42: ='9-1 Water Saving Measures'!E42 -> 0 | F42: ='9-1 Water Saving Measures'!K42 -> 0 | I42: 0 | N42: 0 | O42: =I42/N42 ->  | P42: =I42/F42/1000 -> 
C43: 34 | D43: ='9-1 Water Saving Measures'!D43 -> 0 | E43: ='9-1 Water Saving Measures'!E43 -> 0 | F43: ='9-1 Water Saving Measures'!K43 -> 0 | I43: 0 | N43: 0
C44: 35 | D44: ='9-1 Water Saving Measures'!D44 -> 0 | E44: ='9-1 Water Saving Measures'!E44 -> 0 | F44: ='9-1 Water Saving Measures'!K44 -> 0 | I44: 0 | N44: 0
C45: 36 | D45: ='9-1 Water Saving Measures'!D45 -> 0 | E45: ='9-1 Water Saving Measures'!E45 -> 0 | F45: ='9-1 Water Saving Measures'!K45 -> 0 | I45: 0 | N45: 0
C46: 37 | D46: ='9-1 Water Saving Measures'!D46 -> 0 | E46: ='9-1 Water Saving Measures'!E46 -> 0 | F46: ='9-1 Water Saving Measures'!K46 -> 0 | I46: 0 | N46: 0
C47: 38 | D47: ='9-1 Water Saving Measures'!D47 -> 0 | E47: ='9-1 Water Saving Measures'!E47 -> 0 | F47: ='9-1 Water Saving Measures'!K47 -> 0 | I47: 0 | N47: 0
C48: 39 | D48: ='9-1 Water Saving Measures'!D48 -> 0 | E48: ='9-1 Water Saving Measures'!E48 -> 0 | F48: ='9-1 Water Saving Measures'!K48 -> 0 | I48: 0 | N48: 0
C49: 40 | D49: ='9-1 Water Saving Measures'!D49 -> 0 | E49: ='9-1 Water Saving Measures'!E49 -> 0 | F49: ='9-1 Water Saving Measures'!K49 -> 0 | I49: 0 | N49: 0
C50: 41 | D50: ='9-1 Water Saving Measures'!D50 -> 0 | E50: ='9-1 Water Saving Measures'!E50 -> 0 | F50: ='9-1 Water Saving Measures'!K50 -> 0 | I50: 0 | N50: 0
C51: 42 | D51: ='9-1 Water Saving Measures'!D51 -> 0 | E51: ='9-1 Water Saving Measures'!E51 -> 0 | F51: ='9-1 Water Saving Measures'!K51 -> 0 | I51: 0 | N51: 0
C52: 43 | D52: ='9-1 Water Saving Measures'!D52 -> 0 | E52: ='9-1 Water Saving Measures'!E52 -> 0 | F52: ='9-1 Water Saving Measures'!K52 -> 0 | I52: 0 | N52: 0
C53: 44 | D53: ='9-1 Water Saving Measures'!D53 -> 0 | E53: ='9-1 Water Saving Measures'!E53 -> 0 | F53: ='9-1 Water Saving Measures'!K53 -> 0 | I53: 0 | N53: 0
C54: 45 | D54: ='9-1 Water Saving Measures'!D54 -> 0 | E54: ='9-1 Water Saving Measures'!E54 -> 0 | F54: ='9-1 Water Saving Measures'!K54 -> 0 | I54: 0 | N54: 0
C55: 46 | D55: ='9-1 Water Saving Measures'!D55 -> 0 | E55: ='9-1 Water Saving Measures'!E55 -> 0 | F55: ='9-1 Water Saving Measures'!K55 -> 0 | I55: 0 | N55: 0
C56: 47 | D56: ='9-1 Water Saving Measures'!D56 -> 0 | E56: ='9-1 Water Saving Measures'!E56 -> 0 | F56: ='9-1 Water Saving Measures'!K56 -> 0 | I56: 0 | N56: 0
C57: 48 | D57: ='9-1 Water Saving Measures'!D57 -> 0 | E57: ='9-1 Water Saving Measures'!E57 -> 0 | F57: ='9-1 Water Saving Measures'!K57 -> 0 | I57: 0 | N57: 0
C58: 49 | D58: ='9-1 Water Saving Measures'!D58 -> 0 | E58: ='9-1 Water Saving Measures'!E58 -> 0 | F58: ='9-1 Water Saving Measures'!K58 -> 0 | I58: 0 | N58: 0
C59: 50 | D59: ='9-1 Water Saving Measures'!D59 -> 0 | E59: ='9-1 Water Saving Measures'!E59 -> 0 | F59: ='9-1 Water Saving Measures'!K59 -> 0 | I59: 0 | N59: 0

Sheet 9-3 Action Plan
C2: 9-3 Water Saving Measures Action Plan
C3: Current total water use (ML/year) | F3: ='1 Water Use Summary'!C5 -> 0
C4: Proposed water savings (ML/year) | F4: =SUMIF($D11:$D60,"Yes",G11:G60) -> 0
C5: Percentage reduction (%) | F5: =F4/F3 -> 
C6: Target | E6: ='1 Water Use Summary'!F10 -> KPI (L/ ) | F6: ='1 Water Use Summary'!C7*(100%-F5) -> 
C8: # | D8: Implement? Yes or No | E8: End Use Category | F8: Water Saving Measures (list individual measures or add/attach detailed work sheets) | G8: Proposed project water savings (ML/year) | H8: Current water use (ML/year) | I8: Proposed water savings (%) | J8: Total cost of works ($) | K8: Total savings ($/yr) | L8: Payback period (years) | M8: Installed cost/unit ($/kL saved) | N8: Person responsible (nominate officer) | O8: Target completion date | P8: Date completed | Q8: Status | R8: Comments & risks associated with measure
J9: =SUMIF($D$11:$D$60,"Yes",J11:J60) -> 0 | K9: =SUMIF($D$11:$D$60,"Yes",K11:K60) -> 0 | L9: =J9/K9 ->  | M9: =J9/F4/1000 -> 
D10: Imp | E10: EndUse | F10: WaterSave | G10: TotalSavings
C11: 1 | E11: ='9-1 Water Saving Measures'!D10 -> 0 | F11: ='9-1 Water Saving Measures'!E10 -> 0 | G11: ='9-1 Water Saving Measures'!K10 -> 0 | H11: ='9-1 Water Saving Measures'!L10 ->  | I11: =IF(D11="No",0,G11/H11) ->  | J11: ='9-2 Economic Assessment'!I10 -> 0 | K11: ='9-2 Economic Assessment'!N10 -> 0 | L11: =J11/K11 ->  | M11: =J11/G11/1000 -> 
C12: 2 | E12: ='9-1 Water Saving Measures'!D11 -> 0 | F12: ='9-1 Water Saving Measures'!E11 -> 0 | G12: ='9-1 Water Saving Measures'!K11 -> 0 | H12: ='9-1 Water Saving Measures'!L11 ->  | I12: =IF(D12="No",0,G12/H12) ->  | J12: ='9-2 Economic Assessment'!I11 -> 0 | K12: ='9-2 Economic Assessment'!N11 -> 0 | L12: =J12/K12 -> 
C13: 3 | E13: ='9-1 Water Saving Measures'!D12 -> 0 | F13: ='9-1 Water Saving Measures'!E12 -> 0 | G13: ='9-1 Water Saving Measures'!K12 -> 0 | H13: ='9-1 Water Saving Measures'!L12 ->  | J13: ='9-2 Economic Assessment'!I12 -> 0 | K13: ='9-2 Economic Assessment'!N12 -> 0
C14: 4 | E14: ='9-1 Water Saving Measures'!D13 -> 0 | F14: ='9-1 Water Saving Measures'!E13 -> 0 | G14: ='9-1 Water Saving Measures'!K13 -> 0 | H14: ='9-1 Water Saving Measures'!L13 ->  | J14: ='9-2 Economic Assessment'!I13 -> 0 | K14: ='9-2 Economic Assessment'!N13 -> 0
C15: 5 | E15: ='9-1 Water Saving Measures'!D14 -> 0 | F15: ='9-1 Water Saving Measures'!E14 -> 0 | G15: ='9-1 Water Saving Measures'!K14 -> 0 | H15: ='9-1 Water Saving Measures'!L14 ->  | J15: ='9-2 Economic Assessment'!I14 -> 0 | K15: ='9-2 Economic Assessment'!N14 -> 0
C16: 6 | E16: ='9-1 Water Saving Measures'!D15 -> 0 | F16: ='9-1 Water Saving Measures'!E15 -> 0 | G16: ='9-1 Water Saving Measures'!K15 -> 0 | H16: ='9-1 Water Saving Measures'!L15 ->  | J16: ='9-2 Economic Assessment'!I15 -> 0 | K16: ='9-2 Economic Assessment'!N15 -> 0
C17: 7 | E17: ='9-1 Water Saving Measures'!D16 -> 0 | F17: ='9-1 Water Saving Measures'!E16 -> 0 | G17: ='9-1 Water Saving Measures'!K16 -> 0 | H17: ='9-1 Water Saving Measures'!L16 ->  | J17: ='9-2 Economic Assessment'!I16 -> 0 | K17: ='9-2 Economic Assessment'!N16 -> 0
C18: 8 | E18: ='9-1 Water Saving Measures'!D17 -> 0 | F18: ='9-1 Water Saving Measures'!E17 -> 0 | G18: ='9-1 Water Saving Measures'!K17 -> 0 | H18: ='9-1 Water Saving Measures'!L17 ->  | J18: ='9-2 Economic Assessment'!I17 -> 0 | K18: ='9-2 Economic Assessment'!N17 -> 0
C19: 9 | E19: ='9-1 Water Saving Measures'!D18 -> 0 | F19: ='9-1 Water Saving Measures'!E18 -> 0 | G19: ='9-1 Water Saving Measures'!K18 -> 0 | H19: ='9-1 Water Saving Measures'!L18 ->  | J19: ='9-2 Economic Assessment'!I18 -> 0 | K19: ='9-2 Economic Assessment'!N18 -> 0
C20: 10 | E20: ='9-1 Water Saving Measures'!D19 -> 0 | F20: ='9-1 Water Saving Measures'!E19 -> 0 | G20: ='9-1 Water Saving Measures'!K19 -> 0 | H20: ='9-1 Water Saving Measures'!L19 ->  | J20: ='9-2 Economic Assessment'!I19 -> 0 | K20: ='9-2 Economic Assessment'!N19 -> 0
C21: 11 | E21: ='9-1 Water Saving Measures'!D20 -> 0 | F21: ='9-1 Water Saving Measures'!E20 -> 0 | G21: ='9-1 Water Saving Measures'!K20 -> 0 | H21: ='9-1 Water Saving Measures'!L20 ->  | J21: ='9-2 Economic Assessment'!I20 -> 0 | K21: ='9-2 Economic Assessment'!N20 -> 0
C22: 12 | E22: ='9-1 Water Saving Measures'!D21 -> 0 | F22: ='9-1 Water Saving Measures'!E21 -> 0 | G22: ='9-1 Water Saving Measures'!K21 -> 0 | H22: ='9-1 Water Saving Measures'!L21 ->  | J22: ='9-2 Economic Assessment'!I21 -> 0 | K22: ='9-2 Economic Assessment'!N21 -> 0
C23: 13 | E23: ='9-1 Water Saving Measures'!D22 -> 0 | F23: ='9-1 Water Saving Measures'!E22 -> 0 | G23: ='9-1 Water Saving Measures'!K22 -> 0 | H23: ='9-1 Water Saving Measures'!L22 ->  | J23: ='9-2 Economic Assessment'!I22 -> 0 | K23: ='9-2 Economic Assessment'!N22 -> 0
C24: 14 | E24: ='9-1 Water Saving Measures'!D23 -> 0 | F24: ='9-1 Water Saving Measures'!E23 -> 0 | G24: ='9-1 Water Saving Measures'!K23 -> 0 | H24: ='9-1 Water Saving Measures'!L23 ->  | J24: ='9-2 Economic Assessment'!I23 -> 0 | K24: ='9-2 Economic Assessment'!N23 -> 0
C25: 15 | E25: ='9-1 Water Saving Measures'!D24 -> 0 | F25: ='9-1 Water Saving Measures'!E24 -> 0 | G25: ='9-1 Water Saving Measures'!K24 -> 0 | H25: ='9-1 Water Saving Measures'!L24 ->  | J25: ='9-2 Economic Assessment'!I24 -> 0 | K25: ='9-2 Economic Assessment'!N24 -> 0
C26: 16 | E26: ='9-1 Water Saving Measures'!D25 -> 0 | F26: ='9-1 Water Saving Measures'!E25 -> 0 | G26: ='9-1 Water Saving Measures'!K25 -> 0 | H26: ='9-1 Water Saving Measures'!L25 ->  | J26: ='9-2 Economic Assessment'!I25 -> 0 | K26: ='9-2 Economic Assessment'!N25 -> 0
C27: 17 | E27: ='9-1 Water Saving Measures'!D26 -> 0 | F27: ='9-1 Water Saving Measures'!E26 -> 0 | G27: ='9-1 Water Saving Measures'!K26 -> 0 | H27: ='9-1 Water Saving Measures'!L26 ->  | J27: ='9-2 Economic Assessment'!I26 -> 0 | K27: ='9-2 Economic Assessment'!N26 -> 0
C28: 18 | E28: ='9-1 Water Saving Measures'!D27 -> 0 | F28: ='9-1 Water Saving Measures'!E27 -> 0 | G28: ='9-1 Water Saving Measures'!K27 -> 0 | H28: ='9-1 Water Saving Measures'!L27 ->  | J28: ='9-2 Economic Assessment'!I27 -> 0 | K28: ='9-2 Economic Assessment'!N27 -> 0
C29: 19 | E29: ='9-1 Water Saving Measures'!D28 -> 0 | F29: ='9-1 Water Saving Measures'!E28 -> 0 | G29: ='9-1 Water Saving Measures'!K28 -> 0 | H29: ='9-1 Water Saving Measures'!L28 ->  | J29: ='9-2 Economic Assessment'!I28 -> 0 | K29: ='9-2 Economic Assessment'!N28 -> 0
C30: 20 | E30: ='9-1 Water Saving Measures'!D29 -> 0 | F30: ='9-1 Water Saving Measures'!E29 -> 0 | G30: ='9-1 Water Saving Measures'!K29 -> 0 | H30: ='9-1 Water Saving Measures'!L29 ->  | J30: ='9-2 Economic Assessment'!I29 -> 0 | K30: ='9-2 Economic Assessment'!N29 -> 0
C31: 21 | E31: ='9-1 Water Saving Measures'!D30 -> 0 | F31: ='9-1 Water Saving Measures'!E30 -> 0 | G31: ='9-1 Water Saving Measures'!K30 -> 0 | H31: ='9-1 Water Saving Measures'!L30 ->  | J31: ='9-2 Economic Assessment'!I30 -> 0 | K31: ='9-2 Economic Assessment'!N30 -> 0
C32: 22 | E32: ='9-1 Water Saving Measures'!D31 -> 0 | F32: ='9-1 Water Saving Measures'!E31 -> 0 | G32: ='9-1 Water Saving Measures'!K31 -> 0 | H32: ='9-1 Water Saving Measures'!L31 ->  | J32: ='9-2 Economic Assessment'!I31 -> 0 | K32: ='9-2 Economic Assessment'!N31 -> 0
C33: 23 | E33: ='9-1 Water Saving Measures'!D32 -> 0 | F33: ='9-1 Water Saving Measures'!E32 -> 0 | G33: ='9-1 Water Saving Measures'!K32 -> 0 | H33: ='9-1 Water Saving Measures'!L32 ->  | J33: ='9-2 Economic Assessment'!I32 -> 0 | K33: ='9-2 Economic Assessment'!N32 -> 0
C34: 24 | E34: ='9-1 Water Saving Measures'!D33 -> 0 | F34: ='9-1 Water Saving Measures'!E33 -> 0 | G34: ='9-1 Water Saving Measures'!K33 -> 0 | H34: ='9-1 Water Saving Measures'!L33 ->  | J34: ='9-2 Economic Assessment'!I33 -> 0 | K34: ='9-2 Economic Assessment'!N33 -> 0
C35: 25 | E35: ='9-1 Water Saving Measures'!D34 -> 0 | F35: ='9-1 Water Saving Measures'!E34 -> 0 | G35: ='9-1 Water Saving Measures'!K34 -> 0 | H35: ='9-1 Water Saving Measures'!L34 ->  | J35: ='9-2 Economic Assessment'!I34 -> 0 | K35: ='9-2 Economic Assessment'!N34 -> 0
C36: 26 | E36: ='9-1 Water Saving Measures'!D35 -> 0 | F36: ='9-1 Water Saving Measures'!E35 -> 0 | G36: ='9-1 Water Saving Measures'!K35 -> 0 | H36: ='9-1 Water Saving Measures'!L35 ->  | J36: ='9-2 Economic Assessment'!I35 -> 0 | K36: ='9-2 Economic Assessment'!N35 -> 0
C37: 27 | E37: ='9-1 Water Saving Measures'!D36 -> 0 | F37: ='9-1 Water Saving Measures'!E36 -> 0 | G37: ='9-1 Water Saving Measures'!K36 -> 0 | H37: ='9-1 Water Saving Measures'!L36 ->  | J37: ='9-2 Economic Assessment'!I36 -> 0 | K37: ='9-2 Economic Assessment'!N36 -> 0
C38: 28 | E38: ='9-1 Water Saving Measures'!D37 -> 0 | F38: ='9-1 Water Saving Measures'!E37 -> 0 | G38: ='9-1 Water Saving Measures'!K37 -> 0 | H38: ='9-1 Water Saving Measures'!L37 ->  | J38: ='9-2 Economic Assessment'!I37 -> 0 | K38: ='9-2 Economic Assessment'!N37 -> 0
C39: 29 | E39: ='9-1 Water Saving Measures'!D38 -> 0 | F39: ='9-1 Water Saving Measures'!E38 -> 0 | G39: ='9-1 Water Saving Measures'!K38 -> 0 | H39: ='9-1 Water Saving Measures'!L38 ->  | J39: ='9-2 Economic Assessment'!I38 -> 0 | K39: ='9-2 Economic Assessment'!N38 -> 0
C40: 30 | E40: ='9-1 Water Saving Measures'!D39 -> 0 | F40: ='9-1 Water Saving Measures'!E39 -> 0 | G40: ='9-1 Water Saving Measures'!K39 -> 0 | H40: ='9-1 Water Saving Measures'!L39 ->  | J40: ='9-2 Economic Assessment'!I39 -> 0 | K40: ='9-2 Economic Assessment'!N39 -> 0
C41: 31 | E41: ='9-1 Water Saving Measures'!D40 -> 0 | F41: ='9-1 Water Saving Measures'!E40 -> 0 | G41: ='9-1 Water Saving Measures'!K40 -> 0 | H41: ='9-1 Water Saving Measures'!L40 ->  | J41: ='9-2 Economic Assessment'!I40 -> 0 | K41: ='9-2 Economic Assessment'!N40 -> 0
C42: 32 | E42: ='9-1 Water Saving Measures'!D41 -> 0 | F42: ='9-1 Water Saving Measures'!E41 -> 0 | G42: ='9-1 Water Saving Measures'!K41 -> 0 | H42: ='9-1 Water Saving Measures'!L41 ->  | J42: ='9-2 Economic Assessment'!I41 -> 0 | K42: ='9-2 Economic Assessment'!N41 -> 0
C43: 33 | E43: ='9-1 Water Saving Measures'!D42 -> 0 | F43: ='9-1 Water Saving Measures'!E42 -> 0 | G43: ='9-1 Water Saving Measures'!K42 -> 0 | H43: ='9-1 Water Saving Measures'!L42 ->  | J43: ='9-2 Economic Assessment'!I42 -> 0 | K43: ='9-2 Economic Assessment'!N42 -> 0 | M43: =J43/G43/1000 -> 
C44: 34 | E44: ='9-1 Water Saving Measures'!D43 -> 0 | F44: ='9-1 Water Saving Measures'!E43 -> 0 | G44: ='9-1 Water Saving Measures'!K43 -> 0 | H44: ='9-1 Water Saving Measures'!L43 ->  | J44: ='9-2 Economic Assessment'!I43 -> 0 | K44: ='9-2 Economic Assessment'!N43 -> 0
C45: 35 | E45: ='9-1 Water Saving Measures'!D44 -> 0 | F45: ='9-1 Water Saving Measures'!E44 -> 0 | G45: ='9-1 Water Saving Measures'!K44 -> 0 | H45: ='9-1 Water Saving Measures'!L44 ->  | J45: ='9-2 Economic Assessment'!I44 -> 0 | K45: ='9-2 Economic Assessment'!N44 -> 0
C46: 36 | E46: ='9-1 Water Saving Measures'!D45 -> 0 | F46: ='9-1 Water Saving Measures'!E45 -> 0 | G46: ='9-1 Water Saving Measures'!K45 -> 0 | H46: ='9-1 Water Saving Measures'!L45 ->  | J46: ='9-2 Economic Assessment'!I45 -> 0 | K46: ='9-2 Economic Assessment'!N45 -> 0
C47: 37 | E47: ='9-1 Water Saving Measures'!D46 -> 0 | F47: ='9-1 Water Saving Measures'!E46 -> 0 | G47: ='9-1 Water Saving Measures'!K46 -> 0 | H47: ='9-1 Water Saving Measures'!L46 ->  | J47: ='9-2 Economic Assessment'!I46 -> 0 | K47: ='9-2 Economic Assessment'!N46 -> 0
C48: 38 | E48: ='9-1 Water Saving Measures'!D47 -> 0 | F48: ='9-1 Water Saving Measures'!E47 -> 0 | G48: ='9-1 Water Saving Measures'!K47 -> 0 | H48: ='9-1 Water Saving Measures'!L47 ->  | J48: ='9-2 Economic Assessment'!I47 -> 0 | K48: ='9-2 Economic Assessment'!N47 -> 0
C49: 39 | E49: ='9-1 Water Saving Measures'!D48 -> 0 | F49: ='9-1 Water Saving Measures'!E48 -> 0 | G49: ='9-1 Water Saving Measures'!K48 -> 0 | H49: ='9-1 Water Saving Measures'!L48 ->  | J49: ='9-2 Economic Assessment'!I48 -> 0 | K49: ='9-2 Economic Assessment'!N48 -> 0
C50: 40 | E50: ='9-1 Water Saving Measures'!D49 -> 0 | F50: ='9-1 Water Saving Measures'!E49 -> 0 | G50: ='9-1 Water Saving Measures'!K49 -> 0 | H50: ='9-1 Water Saving Measures'!L49 ->  | J50: ='9-2 Economic Assessment'!I49 -> 0 | K50: ='9-2 Economic Assessment'!N49 -> 0
C51: 41 | E51: ='9-1 Water Saving Measures'!D50 -> 0 | F51: ='9-1 Water Saving Measures'!E50 -> 0 | G51: ='9-1 Water Saving Measures'!K50 -> 0 | H51: ='9-1 Water Saving Measures'!L50 ->  | J51: ='9-2 Economic Assessment'!I50 -> 0 | K51: ='9-2 Economic Assessment'!N50 -> 0
C52: 42 | E52: ='9-1 Water Saving Measures'!D51 -> 0 | F52: ='9-1 Water Saving Measures'!E51 -> 0 | G52: ='9-1 Water Saving Measures'!K51 -> 0 | H52: ='9-1 Water Saving Measures'!L51 ->  | J52: ='9-2 Economic Assessment'!I51 -> 0 | K52: ='9-2 Economic Assessment'!N51 -> 0
C53: 43 | E53: ='9-1 Water Saving Measures'!D52 -> 0 | F53: ='9-1 Water Saving Measures'!E52 -> 0 | G53: ='9-1 Water Saving Measures'!K52 -> 0 | H53: ='9-1 Water Saving Measures'!L52 ->  | J53: ='9-2 Economic Assessment'!I52 -> 0 | K53: ='9-2 Economic Assessment'!N52 -> 0
C54: 44 | E54: ='9-1 Water Saving Measures'!D53 -> 0 | F54: ='9-1 Water Saving Measures'!E53 -> 0 | G54: ='9-1 Water Saving Measures'!K53 -> 0 | H54: ='9-1 Water Saving Measures'!L53 ->  | J54: ='9-2 Economic Assessment'!I53 -> 0 | K54: ='9-2 Economic Assessment'!N53 -> 0
C55: 45 | E55: ='9-1 Water Saving Measures'!D54 -> 0 | F55: ='9-1 Water Saving Measures'!E54 -> 0 | G55: ='9-1 Water Saving Measures'!K54 -> 0 | H55: ='9-1 Water Saving Measures'!L54 ->  | J55: ='9-2 Economic Assessment'!I54 -> 0 | K55: ='9-2 Economic Assessment'!N54 -> 0
C56: 46 | E56: ='9-1 Water Saving Measures'!D55 -> 0 | F56: ='9-1 Water Saving Measures'!E55 -> 0 | G56: ='9-1 Water Saving Measures'!K55 -> 0 | H56: ='9-1 Water Saving Measures'!L55 ->  | J56: ='9-2 Economic Assessment'!I55 -> 0 | K56: ='9-2 Economic Assessment'!N55 -> 0
C57: 47 | E57: ='9-1 Water Saving Measures'!D56 -> 0 | F57: ='9-1 Water Saving Measures'!E56 -> 0 | G57: ='9-1 Water Saving Measures'!K56 -> 0 | H57: ='9-1 Water Saving Measures'!L56 ->  | J57: ='9-2 Economic Assessment'!I56 -> 0 | K57: ='9-2 Economic Assessment'!N56 -> 0
C58: 48 | E58: ='9-1 Water Saving Measures'!D57 -> 0 | F58: ='9-1 Water Saving Measures'!E57 -> 0 | G58: ='9-1 Water Saving Measures'!K57 -> 0 | H58: ='9-1 Water Saving Measures'!L57 ->  | J58: ='9-2 Economic Assessment'!I57 -> 0 | K58: ='9-2 Economic Assessment'!N57 -> 0
C59: 49 | E59: ='9-1 Water Saving Measures'!D58 -> 0 | F59: ='9-1 Water Saving Measures'!E58 -> 0 | G59: ='9-1 Water Saving Measures'!K58 -> 0 | H59: ='9-1 Water Saving Measures'!L58 ->  | J59: ='9-2 Economic Assessment'!I58 -> 0 | K59: ='9-2 Economic Assessment'!N58 -> 0
C60: 50 | E60: ='9-1 Water Saving Measures'!D59 -> 0 | F60: ='9-1 Water Saving Measures'!E59 -> 0 | G60: ='9-1 Water Saving Measures'!K59 -> 0 | H60: ='9-1 Water Saving Measures'!L59 ->  | J60: ='9-2 Economic Assessment'!I59 -> 0 | K60: ='9-2 Economic Assessment'!N59 -> 0

Sheet Data (hidden)
A1: End Uses | C1: Discount Rate | D1: Cost of Energy($/kWh) | E1: Cost per degree change per Litre ($) | F1: Incoming water Temperature (degrees C)
A2: Toilets | C2: 0.08 | D2: 2.56 | E2: 0.0001433702111 | F2: 20
A3: Taps
A4: Showers
A5: Urinals - individual
A6: Urinals - trough
A7: Airconditioning
A8: Washing Machine
A9: Dishwasher
A10: Swimming Pool, Spa
A11: Irrigation
A12: Ice Maker
A13: Spray Rinse Valve
A14: Washdown
A15: Wok System
A16: Commercial Sink
A17: Industrial / Manufacturing Process
A18: Leakage
A19: Fire Testing
A20: Other Use
